Workbook

Sheet Instructions
B3: KSU-Guidance & Section Control Profit Calculator
B5: A computer spreadsheet program to analyze the economics of investing in machine guidance and section control technologies.
K8: Version- 5.20.2016
B25: How the Calculator Works:
B26: This spreadsheet examines:
B27: 1) economics of guidance systems in the context of overlap, which impacts machine and crop input usage per land acre
B28: 2) economics of boom/machine section control, which impacts crop input usage and reduced yield on headlands
B30: Typical uses would involve crop spraying, planting, tillage, etc. Dollar-valued calculations generally are on a per "applied" acre basis. A farm with 3,000 acres that sprays each acre three times a year would have 9,000 applied acres. Per-applied acre benefits are used along with user-entered information on total acres of use, total investment, ammortization years, and interest rate to calculate three results: (a) net benefits per acre (no salvage value of technology is considered). (b) years for payback, and (c) return on investment (ROI). Each of these three individual measures is calculated, holding the other two at user-entered values. If you use the same technology for different machine operation, you need to allocate the investment across the different machines.
B37: INSTRUCTIONS FOR THE USER:
B38: Be sure to "Enable Content" and "Enable Macros" for the spreadsheet to function correctly.
B39: The user inputs information for a field of interest (or an average for their farm). Users can enter individual field information (size and shape) in the Fields tab to determine an average for their entire farm. Even if individual field information is entered in the Fields tab, the user must still enter values for a typical or average field in the Inputs tab.
B40: In the Inputs and Fields tabs, blue shaded numbers are inputs and all other numbers are calculated from these inputs. The spreadsheet automatically recalculates every time an additional input is entered. Thus, it is important to wait until all data have been entered and reviewed before interpreting any of the calculated results (i.e., black numbers).
B41: Several of the input cells and calculated values have a red diamond in the upper right hand corner of the cell (if the comments do not appear go to View / Comments on the Excel menu -- you may need to click and then again). By moving your mouse cursor over this diamond, a brief description of the input will be displayed on the screen.
B43: FOR MORE INFORMATION:
B44: For additional assistance in using this spreadsheet, please download the written tutorial and/or watch the instruction video available through the link below:
B49: Developers:
B50: Kevin C. Dhuyvetter | E50: Craig M. Smith | H50: Terry L. Kastens | K50: Dietrich L. Kastens
B51: Former Agricultural Economist | E51: Associate Professor | H51: Professor Emeritus | K51: Geographer
B52: Kansas State University | E52: Fort Hays State Univ. | H52: Kansas State Univ. | K52: Kastens Inc.
E53: cmsmith11@fhsu.edu | H53: terrykastens@gmail.com | K53: dietrich@kastensinc.com
B55: ACKNOWLEDGEMENTS:
B56: This project was sponsored by PrecisionAg Institute | G56: www.precisionagworks.com
B58: Copyright 2016 AgManager.info, K-State Department of Agricultural Economics

Sheet Inputs
B2: Economic Analysis of Guidance Systems and Section Controls
B4: Section A: Whole-farm information -- INPUTS
B5: Size of typical field | F5: acres | G5: 80
B6: Maximum width of field, perpendicular to direction of swaths (passes) | F6: feet | G6: 2000
B7: Running distance of headlands to cover for field | F7: feet | G7: 6000
B8: Calculated average angle of approach to headland in degrees (0-90) | F8: =Inputs!C372 -> degrees | G8: =IF(ISNUMBER(DEGREES(ASIN(2*G6/G7))),DEGREES(ASIN(2*G6/G7)),"n/a") -> 41.8103149
B9: Interest rate for investment analysis, percent | F9: interest | G9: 0.06
B10: Number of years for amortization | F10: years | G10: 5
B11: Annual non-ownership costs for current technology (e.g., subscriptions, fees, support) | F11: $/farm | G11: 0
B12: Annual non-ownership costs for new technology (e.g., subscriptions, fees, support) | F12: $/farm | G12: 3000
B14: Cost and income categories to include in net benefits total
B15: Machine costs | G15: 1
B16: Input costs | G16: 1
B17: Yield revenue | G17: 1
B18: Non-ownership costs | G18: 0
B20: Section B: Equipment-specific information -- INPUTS | I20: Farm
B21: Implement/farming operation | D21: Sprayer | E21: Planter | F21: Fertilizer | G21: Other 1 | H21: Other 2 | I21: Total/Avg
B22: Include in whole-farm analysis (1=Yes, 0=No) | D22: 1 | E22: 1 | F22: 1 | G22: 0 | H22: 0
B23: Number of swaths (passes) needed to cover headlands | C23: count | D23: 2 | E23: 1 | F23: 2 | G23: 2 | H23: 2 | I23: =(SUMPRODUCT(D23:H23,$D$36:$H$36,$D$22:$H$22))/$I$36 -> 1.8
B24: Width of machine | C24: feet | D24: 90 | E24: 40 | F24: 48 | G24: 60 | H24: 90 | I24: 63.2
B25: Turnaround speed is this portion of field speed | C25: percent | D25: 0.67 | E25: 0.75 | F25: 0.67 | G25: 0.5 | H25: 0.5 | I25: 0.686
B26: =Inputs!B367 -> Area in headlands | C26: =Inputs!C367 -> acres | D26: =D367 -> 24.26652893 | E26: =E367 -> 5.509641873 | F26: =F367 -> 13.04132231 | G26: =G367 -> 16.15702479 | H26: =H367 -> 24.26652893 | I26: 16.02506887
B27: Number of machine or boom sections to be controlled | C27: count | D27: 5 | E27: 8 | F27: 4 | G27: 5 | H27: 5 | I27: 5.2
B28: Reaction distance (overlap) on manual shutoff of boom | C28: feet | D28: 15 | E28: 10 | F28: 15 | G28: 15 | H28: 15 | I28: 14
B30: Custom rate of machine operation, $/ application acre | D30: 5 | E30: 15 | F30: 7.5 | G30: 6 | H30: 6 | I30: =(SUMPRODUCT(D30:H30,$D$36:$H$36,$D$22:$H$22))/$I$36 -> 8
B31: Cost of input (fertilizer, herbicide, etc.), $/application acre | D31: 15 | E31: 60 | F31: 35 | G31: 15 | H31: 15 | I31: =(SUMPRODUCT(D31:H31,$D$36:$H$36,$D$22:$H$22))/$I$36 -> 32
B32: Lost yield revenue for doubling up, $/doubled-up acre | D32: 0 | E32: 50 | F32: 0 | G32: 0 | H32: 0 | I32: =(SUMPRODUCT(D32:H32,$D$36:$H$36,$D$22:$H$22))/$I$36 -> 10
B33: Current overlap to consider | C33: percent | D33: 0.07 | E33: 0.02 | F33: 0.04 | G33: 0.07 | H33: 0.07 | I33: =(SUMPRODUCT(D33:H33,$D$36:$H$36,$D$22:$H$22))/$I$36 -> 0.048
B34: Expected overlap to consider | C34: percent | D34: 0.015 | E34: 0 | F34: 0.015 | G34: 0.02 | H34: 0.015 | I34: =(SUMPRODUCT(D34:H34,$D$36:$H$36,$D$22:$H$22))/$I$36 -> 0.012
B36: Total acres of use annually | C36: acres | D36: 10000 | E36: 5000 | F36: 10000 | G36: 7500 | H36: 10000 | I36: =SUMPRODUCT(D36:H36,$D$22:$H$22) -> 25000
B37: Expected autoguidance investment
B38: autoguidance | C38: dollars | D38: 15000 | E38: 7500 | F38: 7500 | G38: 5000 | H38: 15000 | I38: =SUMPRODUCT(D38:H38,$D$22:$H$22) -> 30000
B39: boom section/control | C39: dollars | D39: 10000 | E39: 20000 | F39: 10000 | G39: 10000 | H39: 10000 | I39: =SUMPRODUCT(D39:H39,$D$22:$H$22) -> 40000
B40: autoguidance, $/acre | D40: =IF(D36=0,"n/a",D38/D36) -> 1.5 | E40: =IF(E36=0,"n/a",E38/E36) -> 1.5 | F40: =IF(F36=0,"n/a",F38/F36) -> 0.75 | G40: =IF(G36=0,"n/a",G38/G36) -> 0.6666666667 | H40: =IF(H36=0,"n/a",H38/H36) -> 1.5 | I40: =I38/I36 -> 1.2
B41: boom/section control, $/acre | D41: =IF(D36=0,"n/a",D39/D36) -> 1 | E41: =IF(E36=0,"n/a",E39/E36) -> 4 | F41: =IF(F36=0,"n/a",F39/F36) -> 1 | G41: =IF(G36=0,"n/a",G39/G36) -> 1.333333333 | H41: =IF(H36=0,"n/a",H39/H36) -> 1 | I41: =I39/I36 -> 1.6
B140: Section C: Summed net benefits to overlap-reducing technology -- OUTPUT
D142: =D21 -> Sprayer | E142: Planter | F142: Fertilizer | G142: Other 1 | H142: Other 2 | I142: Total/Avg
B143: Sub-section C1 | C143: overlap % | D143: Sum of net annual benefits, $/applied acre
C144: =C252 -> High | D144: =IF(D$36=0,"n/a",D277*$G$15+D296*$G$16+D315*$G$17-D328*$G$18) -> 0 | E144: 0 | F144: 0 | G144: 0 | H144: 0 | I144: =(SUMPRODUCT(D144:H144,$D$36:$H$36,$D$22:$H$22))/$I$36 -> 0
C145: =C253 -> | | D145: 0.2520986572 | E145: 0.3650653417 | F145: 0.2538769398 | G145: 0.2519437267 | H145: 0.2620972474 | I145: =(SUMPRODUCT(D145:H145,$D$36:$H$36,$D$22:$H$22))/$I$36 -> 0.2754033071
C146: =C254 -> to | D146: 0.4969207854 | E146: 0.7264358421 | F146: 0.5044834564 | G146: 0.4972570975 | H146: 0.5166125391 | I146: =(SUMPRODUCT(D146:H146,$D$36:$H$36,$D$22:$H$22))/$I$36 -> 0.5458488651
C147: =C255 -> | | D147: 0.7347755108 | E147: 1.084167205 | F147: 0.7518822051 | G147: 0.7361971484 | H147: 0.7638680157 | I147: =(SUMPRODUCT(D147:H147,$D$36:$H$36,$D$22:$H$22))/$I$36 -> 0.8114965273
C148: =C256 -> Low | D148: 0.9659546987 | E148: 1.438314019 | F148: 0.9961342513 | G148: 0.9690078012 | H148: 1.00416783 | I148: =(SUMPRODUCT(D148:H148,$D$36:$H$36,$D$22:$H$22))/$I$36 -> 1.072498384
B150: Sub-section C2 | C150: overlap % | D150: Investment supported by net annual benefits, $/applied acre
C151: =C252 -> High | D151: =IF(D$36=0,"n/a",(1-(1+$G$9)^(-$G$10))/$G$9*D144) -> 0 | E151: 0 | F151: 0 | G151: 0 | H151: 0 | I151: =(1-(1+$G$9)^(-$G$10))/$G$9*I144 -> 0
C152: =C253 -> | | D152: 1.061931254 | E152: 1.537788025 | F152: 1.069422027 | G152: 1.06127863 | H152: 1.104048953 | I152: =(1-(1+$G$9)^(-$G$10))/$G$9*I145 -> 1.160098917
C153: =C254 -> to | D153: 2.093211121 | E153: 3.060012034 | F153: 2.125067842 | G153: 2.09462779 | H153: 2.176159951 | I153: =(1-(1+$G$9)^(-$G$10))/$G$9*I146 -> 2.299313992
C154: =C255 -> | | D154: 3.095141752 | E154: 4.566906671 | F154: 3.167201372 | G154: 3.101130207 | H154: 3.217689966 | I154: =(1-(1+$G$9)^(-$G$10))/$G$9*I147 -> 3.418318584
C155: =C256 -> Low | D155: 4.068952591 | E155: 6.058701886 | F155: 4.196079846 | G155: 4.08181337 | H155: 4.229920203 | I155: =(1-(1+$G$9)^(-$G$10))/$G$9*I148 -> 4.517753352
B157: Sub-section C3 | C157: overlap % | D157: Investment supported by net annual benefits
C158: =C252 -> High | D158: =IF(D$36=0,"n/a",D$36*D151) -> 0 | E158: 0 | F158: 0 | G158: 0 | H158: 0 | I158: =I$36*I151 -> 0
C159: =C253 -> | | D159: 10619.31254 | E159: 7688.940124 | F159: 10694.22027 | G159: 7959.589728 | H159: 11040.48953 | I159: =I$36*I152 -> 29002.47294
C160: =C254 -> to | D160: 20932.11121 | E160: 15300.06017 | F160: 21250.67842 | G160: 15709.70842 | H160: 21761.59951 | I160: =I$36*I153 -> 57482.8498
C161: =C255 -> | | D161: 30951.41752 | E161: 22834.53335 | F161: 31672.01372 | G161: 23258.47655 | H161: 32176.89966 | I161: =I$36*I154 -> 85457.96459
C162: =C256 -> Low | D162: 40689.52591 | E162: 30293.50943 | F162: 41960.79846 | G162: 30613.60027 | H162: 42299.20203 | I162: =I$36*I155 -> 112943.8338
B164: Sub-section C4 | C164: overlap % | D164: Payback in years for given investment
C165: =C252 -> High | D165: n/a | E165: n/a | F165: n/a | G165: n/a | H165: n/a | I165: n/a
C166: =C253 -> | | D166: =IF(D$36=0,"n/a",IF(D145<D$40*$G$9,"won't pay",-LN(1-D$40*$G$9/D145)/LN(1+$G$9))) -> 7.57891948 | E166: 4.857954085 | F166: 3.348344651 | G166: 2.967018982 | H166: 7.219217122 | I166: =IF(I145<I$40*$G$9,"won't pay",-LN(1-I$40*$G$9/I145)/LN(1+$G$9)) -> 5.200815696
C167: =C254 -> to | D167: 3.429137396 | E167: 2.269933614 | F167: 1.603464224 | G167: 1.439213202 | H167: 3.285061625 | I167: =IF(I146<I$40*$G$9,"won't pay",-LN(1-I$40*$G$9/I146)/LN(1+$G$9)) -> 2.427601911
C168: =C255 -> | | D168: 2.242410547 | E168: 1.487277079 | F168: 1.059151987 | G168: 0.9587457516 | H168: 2.151417533 | I168: =IF(I147<I$40*$G$9,"won't pay",-LN(1-I$40*$G$9/I147)/LN(1+$G$9)) -> 1.594512828
C169: =C256 -> Low | D169: 1.678469096 | E169: 1.108939097 | F169: 0.7933359198 | G169: 0.7234651857 | H169: 1.611498732 | I169: =IF(I148<I$40*$G$9,"won't pay",-LN(1-I$40*$G$9/I148)/LN(1+$G$9)) -> 1.192618971
B171: Sub-section C5 | C171: overlap % | D171: Sum of annual net benefits including cost of investment, $/applied acre
C172: =C252 -> High | D172: n/a | E172: n/a | F172: n/a | G172: n/a | H172: n/a | I172: n/a
C173: =C253 -> | | D173: =IF(D$36=0,"n/a",D278*$G$15+D297*$G$16+D316*$G$17-D329*$G$18-(-PMT($G$9,$G$10,D$40))) -> -0.1039959435 | E173: 0.00897074107 | F173: 0.0758296395 | G173: 0.09367945977 | H173: -0.09399735321 | I173: =(SUMPRODUCT(D173:H173,$D$36:$H$36,$D$22:$H$22))/$I$36 -> -0.009472373382
C174: =C254 -> to | D174: 0.1408261847 | E174: 0.3703412415 | F174: 0.3264361561 | G174: 0.3389928306 | H174: 0.1605179385 | I174: =(SUMPRODUCT(D174:H174,$D$36:$H$36,$D$22:$H$22))/$I$36 -> 0.2609731846
C175: =C255 -> | | D175: 0.3786809101 | E175: 0.7280726041 | F175: 0.5738349048 | G175: 0.5779328815 | H175: 0.407773415 | I175: =(SUMPRODUCT(D175:H175,$D$36:$H$36,$D$22:$H$22))/$I$36 -> 0.5266208468
C176: =C256 -> Low | D176: 0.6098600981 | E176: 1.082219418 | F176: 0.8180869509 | G176: 0.8107435342 | H176: 0.6480732296 | I176: =(SUMPRODUCT(D176:H176,$D$36:$H$36,$D$22:$H$22))/$I$36 -> 0.7876227033
B178: Sub-section C6 | C178: overlap % | D178: ROI given benefits, years, and investment, %
C179: =C252 -> High | D179: n/a | E179: n/a | F179: n/a | G179: n/a | H179: n/a | I179: n/a
C180: =C253 -> | | D180: =IF(D$36=0,"n/a",RATE($G$10,D145,-D$40,0,0,D145/D$40)) -> -0.05531954465 | E180: 0.06921285871 | F180: 0.2055915704 | G180: 0.2579387969 | H180: -0.04339664578 | I180: =RATE($G$10,I145,-I$40,0,0,I145/I$40) -> 0.04769138663
C181: =C254 -> to | D181: 0.1957810771 | E181: 0.3914403044 | F181: 0.6105746651 | G181: 0.6921182947 | H181: 0.2135605649 | I181: =RATE($G$10,I146,-I$40,0,0,I146/I$40) -> 0.3554564393
C182: =C255 -> | | D182: 0.3981739887 | E182: 0.6665562952 | F182: 0.9686018467 | G182: 1.075631928 | H182: 0.421509156 | I182: =RATE($G$10,I147,-I$40,0,0,I147/I$40) -> 0.6146231554
C183: =C256 -> Low | D183: 0.5781944922 | E183: 0.9223501972 | F183: 1.307893889 | G183: 1.436587489 | H183: 0.6069756416 | I183: =RATE($G$10,I148,-I$40,0,0,I148/I$40) -> 0.8528176907
B186: Section D: Section control on headlands analysis (affects applied input amounts and yield loss only, not machine operation cost) -- OUTPUT
B187: Sub-section D1
B188: Input cost and yield revenue savings relative to manual whole boom control, expressed as $/applied acre in whole field and associated with:
B189: automatic control of whole boom | C189: $/acre | D189: =IF(D$36=0,"n/a",($G$16*D$31+$G$17*D$32)*(D$347-D348)-$G$18*$G$12/$I$36*D39/(D38+D39)) -> 0.2697278985 | E189: =IF(E$36=0,"n/a",($G$16*E$31+$G$17*E$32)*(E$347-E348)-$G$18*$G$12/$I$36*E39/(E38+E39)) -> 1.275380063 | F189: =IF(F$36=0,"n/a",($G$16*F$31+$G$17*F$32)*(F$347-F348)-$G$18*$G$12/$I$36*F39/(F38+F39)) -> 0.6196576657 | G189: =IF(G$36=0,"n/a",($G$16*G$31+$G$17*G$32)*(G$347-G348)-$G$18*$G$12/$I$36*G39/(G38+G39)) -> 0.2704339925 | H189: =IF(H$36=0,"n/a",($G$16*H$31+$G$17*H$32)*(H$347-H348)-$G$18*$G$12/$I$36*H39/(H38+H39)) -> 0.2697278985 | I189: =(SUMPRODUCT(D189:H189,$D$36:$H$36,$D$22:$H$22))/$I$36 -> 0.6108302383
B190: manual control of boom sections | C190: $/acre | D190: =IF(D$36=0,"n/a",($G$16*D$31+$G$17*D$32)*(D$347-D349)-$G$18*$G$12/$I$36*D39/(D38+D39)) -> 0.7237558998 | E190: =IF(E$36=0,"n/a",($G$16*E$31+$G$17*E$32)*(E$347-E349)-$G$18*$G$12/$I$36*E39/(E38+E39)) -> 2.495356954 | F190: =IF(F$36=0,"n/a",($G$16*F$31+$G$17*F$32)*(F$347-F349)-$G$18*$G$12/$I$36*F39/(F38+F39)) -> 0.831357998 | G190: =IF(G$36=0,"n/a",($G$16*G$31+$G$17*G$32)*(G$347-G349)-$G$18*$G$12/$I$36*G39/(G38+G39)) -> 0.4837670325 | H190: =IF(H$36=0,"n/a",($G$16*H$31+$G$17*H$32)*(H$347-H349)-$G$18*$G$12/$I$36*H39/(H38+H39)) -> 0.7237558998 | I190: =(SUMPRODUCT(D190:H190,$D$36:$H$36,$D$22:$H$22))/$I$36 -> 1.12111695
B191: automatic control of boom sections | C191: $/acre | D191: =IF(D$36=0,"n/a",($G$16*D$31+$G$17*D$32)*(D$347-D350)-$G$18*$G$12/$I$36*D39/(D38+D39)) -> 0.9934837983 | E191: =IF(E$36=0,"n/a",($G$16*E$31+$G$17*E$32)*(E$347-E350)-$G$18*$G$12/$I$36*E39/(E38+E39)) -> 3.770737017 | F191: =IF(F$36=0,"n/a",($G$16*F$31+$G$17*F$32)*(F$347-F350)-$G$18*$G$12/$I$36*F39/(F38+F39)) -> 1.451015664 | G191: =IF(G$36=0,"n/a",($G$16*G$31+$G$17*G$32)*(G$347-G350)-$G$18*$G$12/$I$36*G39/(G38+G39)) -> 0.7542010249 | H191: =IF(H$36=0,"n/a",($G$16*H$31+$G$17*H$32)*(H$347-H350)-$G$18*$G$12/$I$36*H39/(H38+H39)) -> 0.9934837983 | I191: =(SUMPRODUCT(D191:H191,$D$36:$H$36,$D$22:$H$22))/$I$36 -> 1.731947188
B192: Sub-section D2
B193: Investment supported by annual input savings on given acres for:
B194: automatic control of whole boom | C194: $/acre | D194: =IF(D$36=0,"n/a",(1-(1+$G$9)^(-$G$10))/$G$9*D189) -> 1.136192032 | E194: 5.372364791 | F194: 2.61022351 | G194: 1.139166356 | H194: 1.136192032 | I194: =(1-(1+$G$9)^(-$G$10))/$G$9*I189 -> 2.573039175
B195: manual control of boom sections | C195: $/acre | D195: 3.048723142 | E195: 10.51135126 | F195: 3.501982323 | G195: 2.037802728 | H195: 3.048723142 | I195: =(1-(1+$G$9)^(-$G$10))/$G$9*I190 -> 4.722552439
B196: automatic control of boom sections | C196: $/acre | D196: 4.184915173 | E196: 15.88371606 | F196: 6.112205834 | G196: 3.176969085 | H196: 4.184915173 | I196: =(1-(1+$G$9)^(-$G$10))/$G$9*I191 -> 7.295591614
B197: Sub-section D3
B198: Investment supported by annual input savings on given acres for:
B199: automatic control of whole boom | C199: $/farm | D199: =IF(D$36=0,"n/a",D$36*D194) -> 11361.92032 | E199: 26861.82396 | F199: 26102.2351 | G199: 8543.747672 | H199: 11361.92032 | I199: =I$36*I194 -> 64325.97938
B200: manual control of boom sections | C200: =C199 -> $/farm | D200: 30487.23142 | E200: 52556.75632 | F200: 35019.82323 | G200: 15283.52046 | H200: 30487.23142 | I200: =I$36*I195 -> 118063.811
B201: automatic control of boom sections | C201: =C200 -> $/farm | D201: 41849.15173 | E201: 79418.58028 | F201: 61122.05834 | G201: 23827.26813 | H201: 41849.15173 | I201: =I$36*I196 -> 182389.7903
B202: Sub-section D4
B203: Payback in years for given investment
B204: automatic control of whole boom | C204: years | D204: =IF(D$36=0,"n/a",IF(D189<D$41*$G$9,"won't pay",-LN(1-D$41*$G$9/D189)/LN(1+$G$9))) -> 4.317958007 | E204: 3.577819793 | F204: 1.747791252 | G204: 6.01903178 | H204: 4.317958007 | I204: =IF(I189<I$41*$G$9,"won't pay",-LN(1-I$41*$G$9/I189)/LN(1+$G$9)) -> 2.934358506
B205: manual control of boom sections | C205: years | D205: 1.485178327 | E205: 1.735462961 | F205: 1.285555421 | G205: 3.102261557 | H205: 1.485178327 | I205: =IF(I190<I$41*$G$9,"won't pay",-LN(1-I$41*$G$9/I190)/LN(1+$G$9)) -> 1.536304084
B206: automatic control of boom sections | C206: years | D206: 1.069080393 | E206: 1.128626636 | F206: 0.724736342 | G206: 1.924364543 | H206: 1.069080393 | I206: =IF(I191<I$41*$G$9,"won't pay",-LN(1-I$41*$G$9/I191)/LN(1+$G$9)) -> 0.9786413218
B207: Sub-section D5
B208: Sum of annual net benefits including cost of investment, $/applied acre
B209: automatic control of whole boom | C209: $/acre | D209: =IF(D$36=0,"n/a",D189-(-PMT($G$9,$G$10,D$41))) -> 0.03233149806 | E209: 0.3257944615 | F209: 0.3822612653 | G209: -0.04609454144 | H209: 0.03233149806 | I209: =I189-(-PMT($G$9,$G$10,I$41)) -> 0.2309959976
B210: manual control of boom sections | C210: $/acre | D210: 0.4863594993 | E210: 1.545771352 | F210: 0.5939615975 | G210: 0.1672384986 | H210: 0.4863594993 | I210: =I190-(-PMT($G$9,$G$10,I$41)) -> 0.7412827092
B211: automatic control of boom sections | C211: $/acre | D211: 0.7560873978 | E211: 2.821151415 | F211: 1.213619263 | G211: 0.437672491 | H211: 0.7560873978 | I211: =I191-(-PMT($G$9,$G$10,I$41)) -> 1.352112947
B212: Sub-section D6
B213: ROI given benefits, years, and investment, %
B214: automatic control of whole boom | C214: % | D214: =IF(ISNUMBER(RATE($G$10,D189,-D$41,0,0,D189/D$41))=TRUE,RATE($G$10,D189,-D$41,0,0,D189/D$41),"n/a") -> 0.108761561 | E214: 0.1787114914 | F214: 0.5505097039 | G214: 0.004694499556 | H214: 0.108761561 | I214: 0.2629581434
B215: manual control of boom sections | C215: % | D215: 0.6676408283 | E215: 0.5552873366 | F215: 0.7855516107 | G215: 0.2381205698 | H215: 0.6676408283 | I215: 0.6419932232
B216: automatic control of boom sections | C216: % | D216: 0.9590544976 | E216: 0.9051219382 | F216: 1.434031623 | G216: 0.4881478699 | H216: 0.9590544976 | I216: 1.052769946
B218: These are needed for the listboxes: | C218: =D21 -> Sprayer
C219: =E21 -> Planter
C220: =F21 -> Fertilizer
C221: =G21 -> Other 1
C222: =H21 -> Other 2
C223: Whole Farm
B225: Titles for figures: | C225: Acres applied annually | E225: x-axis (figures 1 and 2)
C226: Payback, years | E226: y -axis (figure 1)
C227: Return on investment, % | E227: y1-axis (figure 2)
C228: Net benefits, $/ac | E228: y2-axis (figure 2)
C229: Percent of base acres applied annually
B241: Intermediate calculations
D242: =D21 -> Sprayer | E242: Planter | F242: Fertilizer | G242: Other 1 | H242: Other 2 | I242: Total/Avg
C243: Overlap %
C244: High | D244: =D33 -> 0.07 | E244: 0.02 | F244: 0.04 | G244: 0.07 | H244: 0.07 | I244: 0.048
C245: | | D245: =AVERAGE(D244,D246) -> 0.05625 | E245: 0.015 | F245: 0.03375 | G245: 0.0575 | H245: 0.05625 | I245: 0.039
C246: to | D246: =AVERAGE(D244,D248) -> 0.0425 | E246: 0.01 | F246: 0.0275 | G246: 0.045 | H246: 0.0425 | I246: 0.03
C247: | | D247: =AVERAGE(D246,D248) -> 0.02875 | E247: 0.005 | F247: 0.02125 | G247: 0.0325 | H247: 0.02875 | I247: 0.021
C248: Low | D248: =D34 -> 0.015 | E248: 0 | F248: 0.015 | G248: 0.02 | H248: 0.015 | I248: 0.012
B251: Section C: Value of overlap | C251: overlap % | D251: Machine efficiency vs overlap percentages (includes turnaround slowdown)
C252: High | D252: =$G$5/(($G$5+((1/(1-D244)-1)*D443+($G$7*D$24*D244*(D$23-1))/43560)+((D$343*(D$360/(D$24-D244*D$24)/43560)+((PI()*(D$24*(1-D244/2))^2)/2*((D$360/(D$24-D244*D$24)-1)/43560)+(D$28*D$24*(1-D244)*((D$360/(D$24-D244*D$24)*2)/43560*$C$386))+(1/D$25-1)*((D$343*(D$360/(D$24-D244*D$24)/43560)+((PI()*(D$24*(1-D244/2))^2)/2*((D$360/(D$24-D244*D$24)-1)/43560)+(D$28*D$24*(1-D244)*((D$360/(D$24-D244*D$24)*2)/43560*$C$386)))))))))) -> 0.7542614057 | E252: 0.883401846 | F252: 0.8321548948 | G252: 0.753549626 | H252: 0.7067404438 | I252: =(SUMPRODUCT(D252:H252,$D$36:$H$36,$D$22:$H$22))/$I$36 -> 0.8112468894
C253: | | D253: 0.7629637524 | E253: 0.8873892356 | F253: 0.8368074019 | G253: 0.7618531431 | H253: 0.7147021897 | I253: =(SUMPRODUCT(D253:H253,$D$36:$H$36,$D$22:$H$22))/$I$36 -> 0.8173863088
C254: to | D254: 0.77160501 | E254: 0.8913715252 | F254: 0.8414506056 | G254: 0.7701125831 | H254: 0.7226023535 | I254: =(SUMPRODUCT(D254:H254,$D$36:$H$36,$D$22:$H$22))/$I$36 -> 0.8234965513
C255: | | D255: 0.7801855894 | E255: 0.895348718 | F255: 0.8460845186 | G255: 0.7783281231 | H255: 0.730441375 | I255: =(SUMPRODUCT(D255:H255,$D$36:$H$36,$D$22:$H$22))/$I$36 -> 0.8295777868
C256: Low | D256: 0.7887058994 | E256: 0.8993208173 | F256: 0.8507091532 | G256: 0.7864999403 | H256: 0.7382196917 | I256: =(SUMPRODUCT(D256:H256,$D$36:$H$36,$D$22:$H$22))/$I$36 -> 0.8356301845
C257: overlap % | D257: Crop input efficiency vs overlap percentages
C258: High | D258: =IF(D$36=0,"n/a",D$358/(D$358+((1/(1-D244)-1)*(D$358-(D$24+(D$24-D244*D$24)*(D$23-1))*D$361/43560)+(D$361*D$24*D244*(D$23-1))/43560)+(((D$24*(D$24/TAN(RADIANS(DEGREES(ASIN(2*(D$24-D244*D$24)/(D$361/(D$360/(D$24-D244*D$24)))))))))/2+D$24*D$28)*2*D$360/(D$24-D244*D$24)/43560))) -> 0.8739614084 | E258: 0.9461582482 | F258: 0.9189138192 | G258: 0.8869932295 | H258: 0.8739614084 | I258: =(SUMPRODUCT(D258:H258,$D$36:$H$36,$D$22:$H$22))/$I$36 -> 0.9063817407
C259: | | D259: 0.8851106289 | E259: 0.9506695254 | F259: 0.9244392675 | G259: 0.8978094335 | H259: 0.8851106289 | I259: =(SUMPRODUCT(D259:H259,$D$36:$H$36,$D$22:$H$22))/$I$36 -> 0.9139538636
C260: to | D260: 0.8962153794 | E260: 0.9551778049 | F260: 0.9299592574 | G260: 0.9085990603 | H260: 0.8962153794 | I260: =(SUMPRODUCT(D260:H260,$D$36:$H$36,$D$22:$H$22))/$I$36 -> 0.9215054157
C261: | | D261: 0.9072759255 | E261: 0.9596830897 | F261: 0.935473797 | G261: 0.9193622078 | H261: 0.9072759255 | I261: =(SUMPRODUCT(D261:H261,$D$36:$H$36,$D$22:$H$22))/$I$36 -> 0.929036507
C262: Low | D262: 0.9182925306 | E262: 0.9641853829 | F262: 0.9409828943 | G262: 0.9300989734 | H262: 0.9182925306 | I262: =(SUMPRODUCT(D262:H262,$D$36:$H$36,$D$22:$H$22))/$I$36 -> 0.9365472465
C263: overlap % | D263: Doubling-up of inputs on headlands field efficiency vs overlap percentages
C264: High | D264: =IF(D$36=0,"n/a",D$358/(D$358+((((D$24*(D$24/TAN(RADIANS((DEGREES(ASIN(2*(D$24-D244*D$24)/(D$361/(D$360/(D$24-D244*D$24))))))))))/2+D$24*D$28)*2)*(D$360/(D$24-D244*D$24))/43560))) -> 0.9254032257 | E264: 0.9634811643 | F264: 0.9523644511 | G264: 0.9434752572 | H264: 0.9254032257 | I264: =(SUMPRODUCT(D264:H264,$D$36:$H$36,$D$22:$H$22))/$I$36 -> 0.9438033036
C265: | | D265: 0.9264100856 | E265: 0.9636598026 | F265: 0.9526579853 | G265: 0.9441830782 | H265: 0.9264100856 | I265: =(SUMPRODUCT(D265:H265,$D$36:$H$36,$D$22:$H$22))/$I$36 -> 0.9443591889
C266: to | D266: 0.9273901276 | E266: 0.9638367017 | F266: 0.9529479241 | G266: 0.9448733914 | H266: 0.9273901276 | I266: =(SUMPRODUCT(D266:H266,$D$36:$H$36,$D$22:$H$22))/$I$36 -> 0.944902561
C267: | | D267: 0.928344409 | E267: 0.9640118868 | F267: 0.9532343331 | G267: 0.9455468383 | H267: 0.928344409 | I267: =(SUMPRODUCT(D267:H267,$D$36:$H$36,$D$22:$H$22))/$I$36 -> 0.9454338742
C268: Low | D268: 0.9292739324 | E268: 0.9641853829 | F268: 0.9535172765 | G268: 0.9462040296 | H268: 0.9292739324 | I268: =(SUMPRODUCT(D268:H268,$D$36:$H$36,$D$22:$H$22))/$I$36 -> 0.9459535601
B270: Sub-section C1: Machine operations | C270: overlap % | D270: Custom rate for machine operations equivalent (uses turnaround slowdown), $/applied acre
C271: High | D271: =IF(D$36=0,"n/a",D$378/D252*D$30) -> 5.114970779 | E271: 15.13532368 | F271: 7.583779873 | G271: 6.131879492 | H271: 6.134662533 | I271: =(SUMPRODUCT(D271:H271,$D$36:$H$36,$D$22:$H$22))/$I$36 -> 8.106564997
B272: To compare different overlaps | C272: | | D272: 5.056629542 | E272: 15.0673147 | F272: 7.541615344 | G272: 6.065047497 | H272: 6.066322706 | I272: =(SUMPRODUCT(D272:H272,$D$36:$H$36,$D$22:$H$22))/$I$36 -> 8.052760896
C273: to | D273: 5 | E273: 15 | F273: 7.5 | G273: 6 | H273: 6 | I273: =(SUMPRODUCT(D273:H273,$D$36:$H$36,$D$22:$H$22))/$I$36 -> 8
C274: | | D274: 4.94500937 | E274: 14.9333691 | F274: 7.458923315 | G274: 5.93666779 | H274: 5.935608619 | I274: =(SUMPRODUCT(D274:H274,$D$36:$H$36,$D$22:$H$22))/$I$36 -> 7.948246894
C275: Low | D275: 4.891588935 | E275: 14.86741174 | F275: 7.418375033 | G275: 5.874985187 | H275: 5.873067557 | I275: =(SUMPRODUCT(D275:H275,$D$36:$H$36,$D$22:$H$22))/$I$36 -> 7.897467935
C276: overlap % | D276: Advantage due to reduced overlap for machine operation (relative to topmost row), $/applied acre
C277: High | D277: =IF(D$36=0,"n/a",D$271-D271) -> 0 | E277: 0 | F277: 0 | G277: 0 | H277: 0 | I277: =(SUMPRODUCT(D277:H277,$D$36:$H$36,$D$22:$H$22))/$I$36 -> 0
B278: To compare one % overlap with another just subtract one | C278: | | D278: 0.0583412369 | E278: 0.06800897636 | F278: 0.04216452851 | G278: 0.06683199574 | H278: 0.06833982718 | I278: =(SUMPRODUCT(D278:H278,$D$36:$H$36,$D$22:$H$22))/$I$36 -> 0.05380410143
B279: row's values from another in same column (i.e., same field) | C279: to | D279: 0.1149707794 | E279: 0.1353236808 | F279: 0.08377987297 | G279: 0.1318794924 | H279: 0.1346625331 | I279: =(SUMPRODUCT(D279:H279,$D$36:$H$36,$D$22:$H$22))/$I$36 -> 0.1065649971
C280: | | D280: 0.1699614092 | E280: 0.201954582 | F280: 0.1248565578 | G280: 0.1952117021 | H280: 0.1990539141 | I280: =(SUMPRODUCT(D280:H280,$D$36:$H$36,$D$22:$H$22))/$I$36 -> 0.1583181032
C281: Low | D281: 0.2233818444 | E281: 0.2679119396 | F281: 0.1654048404 | G281: 0.2568943055 | H281: 0.261594976 | I281: =(SUMPRODUCT(D281:H281,$D$36:$H$36,$D$22:$H$22))/$I$36 -> 0.2090970618
C282: overlap % | D282: Investment supported by above annual cost savings (relative to topmost row), $/applied acre
C283: High | D283: =IF(D$36=0,"n/a",(1-(1+$G$9)^(-$G$10))/$G$9*D277) -> 0 | E283: 0 | F283: 0 | G283: 0 | H283: 0 | I283: =(SUMPRODUCT(D283:H283,$D$36:$H$36,$D$22:$H$22))/$I$36 -> 0
B284: To compare one % overlap with another just subtract one | C284: | | D284: 0.2457545135 | E284: 0.2864785491 | F284: 0.1776123329 | G284: 0.2815206786 | H284: 0.2878722131 | I284: =(SUMPRODUCT(D284:H284,$D$36:$H$36,$D$22:$H$22))/$I$36 -> 0.2266424484
B285: row's values from another in same column (i.e., same field) | C285: to | D285: 0.4842987474 | E285: 0.5700325721 | F285: 0.3529113029 | G285: 0.5555243979 | H285: 0.5672475777 | I285: =(SUMPRODUCT(D285:H285,$D$36:$H$36,$D$22:$H$22))/$I$36 -> 0.4488905345
C286: | | D286: =IF(D$36=0,"n/a",(1-(1+$G$9)^(-$G$10))/$G$9*D280) -> 0.7159392852 | E286: 0.8507061676 | F286: 0.5259412425 | G286: 0.8223027043 | H286: 0.8384874993 | I286: =(SUMPRODUCT(D286:H286,$D$36:$H$36,$D$22:$H$22))/$I$36 -> 0.6668934446
C287: Low | D287: 0.9409655919 | E287: 1.128542552 | F287: 0.6967453595 | G287: 1.082132269 | H287: 1.101933203 | I287: =(SUMPRODUCT(D287:H287,$D$36:$H$36,$D$22:$H$22))/$I$36 -> 0.880792891
B289: Sub-section C2: Crop input cost | C289: overlap % | D289: Crop input cost equivalent, $/applied acre
C290: High | D290: =IF(D$36=0,"n/a",D$383/D258*D$31) -> 15.38195001 | E290: 60.57196923 | F290: 35.42070358 | G290: 15.36537761 | H290: 15.38195001 | I290: =(SUMPRODUCT(D290:H290,$D$36:$H$36,$D$22:$H$22))/$I$36 -> 32.43545528
B291: To compare different overlaps | C291: | | D291: 15.18819259 | E291: 60.28453292 | F291: 35.20899117 | G291: 15.18026587 | H291: 15.18819259 | I291: =(SUMPRODUCT(D291:H291,$D$36:$H$36,$D$22:$H$22))/$I$36 -> 32.21578009
C292: to | D292: 15 | E292: 60 | F292: 35 | G292: 15 | H292: 15 | I292: =(SUMPRODUCT(D292:H292,$D$36:$H$36,$D$22:$H$22))/$I$36 -> 32
C293: | | D293: 14.8171359 | E293: 59.71832671 | F293: 34.79367794 | G293: 14.82439216 | H293: 14.8171359 | I293: =(SUMPRODUCT(D293:H293,$D$36:$H$36,$D$22:$H$22))/$I$36 -> 31.78799088
C294: Low | D294: 14.63937715 | E294: 59.43947016 | F294: 34.58997417 | G294: 14.65326411 | H294: 14.63937715 | I294: =(SUMPRODUCT(D294:H294,$D$36:$H$36,$D$22:$H$22))/$I$36 -> 31.57963456
C295: overlap % | D295: Advantage due to reduced overlap for crop input expense (relative to topmost row), $/applied acre
C296: High | D296: =IF(D$36=0,"n/a",D$290-D290) -> 0 | E296: 0 | F296: 0 | G296: 0 | H296: 0 | I296: =(SUMPRODUCT(D296:H296,$D$36:$H$36,$D$22:$H$22))/$I$36 -> 0
B297: To compare one % overlap with another just subtract one | C297: | | D297: 0.1937574203 | E297: 0.2874363122 | F297: 0.2117124113 | G297: 0.185111731 | H297: 0.1937574203 | I297: =(SUMPRODUCT(D297:H297,$D$36:$H$36,$D$22:$H$22))/$I$36 -> 0.2196751951
B298: row's values from another in same column (i.e., same field) | C298: to | D298: 0.381950006 | E298: 0.5719692273 | F298: 0.4207035834 | G298: 0.3653776051 | H298: 0.381950006 | I298: =(SUMPRODUCT(D298:H298,$D$36:$H$36,$D$22:$H$22))/$I$36 -> 0.4354552812
C299: | | D299: 0.5648141015 | E299: 0.8536425151 | F299: 0.6270256473 | G299: 0.5409854463 | H299: 0.5648141015 | I299: =(SUMPRODUCT(D299:H299,$D$36:$H$36,$D$22:$H$22))/$I$36 -> 0.6474644026
C300: Low | D300: 0.7425728543 | E300: 1.13249907 | F300: 0.8307294109 | G300: 0.7121134957 | H300: 0.7425728543 | I300: =(SUMPRODUCT(D300:H300,$D$36:$H$36,$D$22:$H$22))/$I$36 -> 0.8558207201
C301: overlap % | D301: Investment supported by above annual cost savings (relative to topmost row), $/applied acre
C302: High | D302: =IF(D$36=0,"n/a",(1-(1+$G$9)^(-$G$10))/$G$9*D296) -> 0 | E302: 0 | F302: 0 | G302: 0 | H302: 0 | I302: =(SUMPRODUCT(D302:H302,$D$36:$H$36,$D$22:$H$22))/$I$36 -> 0
B303: To compare one % overlap with another just subtract one | C303: | | D303: 0.8161767403 | E303: 1.210786312 | F303: 0.8918096944 | G303: 0.7797579519 | H303: 0.8161767403 | I303: =(SUMPRODUCT(D303:H303,$D$36:$H$36,$D$22:$H$22))/$I$36 -> 0.9253518363
B304: row's values from another in same column (i.e., same field) | C304: to | D304: 1.608912373 | E304: 2.40934246 | F304: 1.772156539 | G304: 1.539103392 | H304: 1.608912373 | I304: =(SUMPRODUCT(D304:H304,$D$36:$H$36,$D$22:$H$22))/$I$36 -> 1.834296057
C305: | | D305: =IF(D$36=0,"n/a",(1-(1+$G$9)^(-$G$10))/$G$9*D299) -> 2.379202467 | E305: 3.595852817 | F305: 2.641260129 | G305: 2.278827503 | H305: 2.379202467 | I305: =(SUMPRODUCT(D305:H305,$D$36:$H$36,$D$22:$H$22))/$I$36 -> 2.727355602
C306: Low | D306: 3.127987 | E306: 4.77049807 | F306: 3.499334486 | G306: 2.999681101 | H306: 3.127987 | I306: =(SUMPRODUCT(D306:H306,$D$36:$H$36,$D$22:$H$22))/$I$36 -> 3.605028208
B308: Sub-section C3: Lost yield revenue with doubling up of inputs | C308: overlap % | D308: Lost yield revenue with doubling up of inputs, $/applied acre
C309: High | D309: =IF(D$36=0,"n/a",(1/D264-1)*D$32) -> 0 | E309: 1.895150471 | F309: 0 | G309: 0 | H309: 0 | I309: =(SUMPRODUCT(D309:H309,$D$36:$H$36,$D$22:$H$22))/$I$36 -> 0.3790300943
B310: To compare different overlaps | C310: | | D310: 0 | E310: 1.885530418 | F310: 0 | G310: 0 | H310: 0 | I310: =(SUMPRODUCT(D310:H310,$D$36:$H$36,$D$22:$H$22))/$I$36 -> 0.3771060836
C311: to | D311: 0 | E311: 1.876007537 | F311: 0 | G311: 0 | H311: 0 | I311: =(SUMPRODUCT(D311:H311,$D$36:$H$36,$D$22:$H$22))/$I$36 -> 0.3752015074
C312: | | D312: 0 | E312: 1.866580364 | F312: 0 | G312: 0 | H312: 0 | I312: =(SUMPRODUCT(D312:H312,$D$36:$H$36,$D$22:$H$22))/$I$36 -> 0.3733160727
C313: Low | D313: 0 | E313: 1.857247462 | F313: 0 | G313: 0 | H313: 0 | I313: =(SUMPRODUCT(D313:H313,$D$36:$H$36,$D$22:$H$22))/$I$36 -> 0.3714494924
C314: overlap % | D314: Advantage due to reduced overlap for yield revenue (relative to topmost row), $/applied acre
C315: High | D315: =IF(D$36=0,"n/a",D$309-D309) -> 0 | E315: 0 | F315: 0 | G315: 0 | H315: 0 | I315: =(SUMPRODUCT(D315:H315,$D$36:$H$36,$D$22:$H$22))/$I$36 -> 0
B316: To compare one % overlap with another just subtract one | C316: | | D316: 0 | E316: 0.009620053154 | F316: 0 | G316: 0 | H316: 0 | I316: =(SUMPRODUCT(D316:H316,$D$36:$H$36,$D$22:$H$22))/$I$36 -> 0.001924010631
B317: row's values from another in same column (i.e., same field) | C317: to | D317: 0 | E317: 0.01914293405 | F317: 0 | G317: 0 | H317: 0 | I317: =(SUMPRODUCT(D317:H317,$D$36:$H$36,$D$22:$H$22))/$I$36 -> 0.003828586811
C318: | | D318: 0 | E318: 0.02857010761 | F318: 0 | G318: 0 | H318: 0 | I318: =(SUMPRODUCT(D318:H318,$D$36:$H$36,$D$22:$H$22))/$I$36 -> 0.005714021521
C319: Low | D319: 0 | E319: 0.03790300943 | F319: 0 | G319: 0 | H319: 0 | I319: =(SUMPRODUCT(D319:H319,$D$36:$H$36,$D$22:$H$22))/$I$36 -> 0.007580601885
C320: overlap % | D320: Investment supported by above annual cost savings (relative to topmost row), $/applied acre
C321: High | D321: =IF(D$36=0,"n/a",(1-(1+$G$9)^(-$G$10))/$G$9*D315) -> 0 | E321: 0 | F321: 0 | G321: 0 | H321: 0 | I321: =(SUMPRODUCT(D321:H321,$D$36:$H$36,$D$22:$H$22))/$I$36 -> 0
B322: To compare one % overlap with another just subtract one | C322: | | D322: 0 | E322: 0.04052316352 | F322: 0 | G322: 0 | H322: 0 | I322: =(SUMPRODUCT(D322:H322,$D$36:$H$36,$D$22:$H$22))/$I$36 -> 0.008104632704
B323: row's values from another in same column (i.e., same field) | C323: to | D323: 0 | E323: 0.08063700215 | F323: 0 | G323: 0 | H323: 0 | I323: =(SUMPRODUCT(D323:H323,$D$36:$H$36,$D$22:$H$22))/$I$36 -> 0.01612740043
C324: | | D324: =IF(D$36=0,"n/a",(1-(1+$G$9)^(-$G$10))/$G$9*D318) -> 0 | E324: 0.1203476866 | F324: 0 | G324: 0 | H324: 0 | I324: =(SUMPRODUCT(D324:H324,$D$36:$H$36,$D$22:$H$22))/$I$36 -> 0.02406953733
C325: Low | D325: 0 | E325: 0.1596612643 | F325: 0 | G325: 0 | H325: 0 | I325: =(SUMPRODUCT(D325:H325,$D$36:$H$36,$D$22:$H$22))/$I$36 -> 0.03193225285
B327: Sub-section C4: Non-ownership costs of technology | C327: overlap % | D327: Non-ownership costs of technology, $/applied acre
C328: High | D328: =IF(D$36=0,"n/a",$G11/$I36*D38/(D38+D39)) -> 0 | E328: =IF(E$36=0,"n/a",$G11/$I36*E38/(E38+E39)) -> 0 | F328: =IF(F$36=0,"n/a",$G11/$I36*F38/(F38+F39)) -> 0 | G328: =IF(G$36=0,"n/a",$G11/$I36*G38/(G38+G39)) -> 0 | H328: =IF(H$36=0,"n/a",$G11/$I36*H38/(H38+H39)) -> 0 | I328: =(SUMPRODUCT(D328:H328,$D$36:$H$36,$D$22:$H$22))/$I$36 -> 0
C329: | | D329: =IF(D$36=0,"n/a",(D328+D330)/2) -> 0.018 | E329: =IF(E$36=0,"n/a",(E328+E330)/2) -> 0.008181818182 | F329: =IF(F$36=0,"n/a",(F328+F330)/2) -> 0.01285714286 | G329: =IF(G$36=0,"n/a",(G328+G330)/2) -> 0.01 | H329: =IF(H$36=0,"n/a",(H328+H330)/2) -> 0.018 | I329: =(SUMPRODUCT(D329:H329,$D$36:$H$36,$D$22:$H$22))/$I$36 -> 0.01397922078
C330: to | D330: =IF(D$36=0,"n/a",(D328+D332)/2) -> 0.036 | E330: =IF(E$36=0,"n/a",(E328+E332)/2) -> 0.01636363636 | F330: =IF(F$36=0,"n/a",(F328+F332)/2) -> 0.02571428571 | G330: =IF(G$36=0,"n/a",(G328+G332)/2) -> 0.02 | H330: =IF(H$36=0,"n/a",(H328+H332)/2) -> 0.036 | I330: =(SUMPRODUCT(D330:H330,$D$36:$H$36,$D$22:$H$22))/$I$36 -> 0.02795844156
C331: | | D331: =IF(D$36=0,"n/a",(D330+D332)/2) -> 0.054 | E331: =IF(E$36=0,"n/a",(E330+E332)/2) -> 0.02454545455 | F331: =IF(F$36=0,"n/a",(F330+F332)/2) -> 0.03857142857 | G331: =IF(G$36=0,"n/a",(G330+G332)/2) -> 0.03 | H331: =IF(H$36=0,"n/a",(H330+H332)/2) -> 0.054 | I331: =(SUMPRODUCT(D331:H331,$D$36:$H$36,$D$22:$H$22))/$I$36 -> 0.04193766234
... 95 more rows

Sheet Results
B2: ="Analysis of Precision Ag Technologies for "& Inputs!D21&" vs. Applied Acres" -> Analysis of Precision Ag Technologies for Sprayer vs. Applied Acres
B4: ="Acres applied annually (average field size = "&Inputs!$G$5&" acres)" -> Acres applied annually (average field size = 80 acres) | G4: =I4*Inputs!C$390 -> 8000 | H4: =I4*Inputs!C$391 -> 9000 | I4: =Inputs!$D$36 -> 10000 | J4: =I4*Inputs!C$393 -> 11000 | K4: =I4*Inputs!C$394 -> 12000
B6: ="Guidance system (going from "&FIXED(Inputs!$D$33*100,2)&"% to "&FIXED(Inputs!$D$34*100,2)&"% overlap)" -> Guidance system (going from 7.00% to 1.50% overlap)
B7: =Inputs!$D$143 -> Sum of net annual benefits, $/applied acre | G7: =I7 -> 0.9659546987 | H7: =I7 -> 0.9659546987 | I7: =Inputs!D148 -> 0.9659546987 | J7: =I7 -> 0.9659546987 | K7: =I7 -> 0.9659546987
B8: Payback for given investment, years | G8: =Inputs!D403 -> 2.125052238 | H8: =Inputs!D404 -> 1.875517229 | I8: =Inputs!D405 -> 1.678469096 | J8: =Inputs!D406 -> 1.518913922 | K8: =Inputs!D407 -> 1.387075148
B9: Sum of annual net benefits including cost of investment, $/applied acre | G9: =Inputs!D416 -> 0.5208364479 | H9: =Inputs!D417 -> 0.5702940314 | I9: =Inputs!D418 -> 0.6098600981 | J9: =Inputs!D419 -> 0.6422323345 | K9: =Inputs!D420 -> 0.6692091982
B10: ROI given benefits, years, and investment, % | G10: =IF(Inputs!$D$390=0,"n/a",RATE(Inputs!$G$10,Inputs!$D$148,Inputs!$D$390,0,0,Inputs!$D$148/-Inputs!$D$390)) -> 0.4285984132 | H10: =IF(Inputs!$D$391=0,"n/a",RATE(Inputs!$G$10,Inputs!$D$148,Inputs!$D$391,0,0,Inputs!$D$148/-Inputs!$D$391)) -> 0.5043467778 | I10: =IF(Inputs!$D$392=0,"n/a",RATE(Inputs!$G$10,Inputs!$D$148,Inputs!$D$392,0,0,Inputs!$D$148/-Inputs!$D$392)) -> 0.5781944922 | J10: =IF(Inputs!$D$393=0,"n/a",RATE(Inputs!$G$10,Inputs!$D$148,Inputs!$D$393,0,0,Inputs!$D$148/-Inputs!$D$393)) -> 0.6505401753 | K10: =IF(Inputs!$D$394=0,"n/a",RATE(Inputs!$G$10,Inputs!$D$148,Inputs!$D$394,0,0,Inputs!$D$148/-Inputs!$D$394)) -> 0.7216797615
B12: ="Section control (controlling "&Inputs!$D$24&"' implement in "&Inputs!$D$27&" sections)" -> Section control (controlling 90' implement in 5 sections)
B13: =Inputs!$D$143 -> Sum of net annual benefits, $/applied acre | G13: =I13 -> 0.9934837983 | H13: =I13 -> 0.9934837983 | I13: =Inputs!D191 -> 0.9934837983 | J13: =I13 -> 0.9934837983 | K13: =I13 -> 0.9934837983
B14: Payback for given investment, years | G14: =Inputs!D409 -> 1.347090438 | H14: =Inputs!D410 -> 1.192084755 | I14: =Inputs!D411 -> 1.069080393 | J14: =Inputs!D412 -> 0.969092103 | K14: =Inputs!D413 -> 0.8862112416
B15: Sum of annual net benefits including cost of investment, $/applied acre | G15: =Inputs!D422 -> 0.6967382977 | H15: =Inputs!D423 -> 0.72971002 | I15: =Inputs!D424 -> 0.7560873978 | J15: =Inputs!D425 -> 0.7776688888 | K15: =Inputs!D426 -> 0.7956534646
B16: ROI given benefits, years, and investment, % | G16: =IF(Inputs!$D$396=0,"n/a",RATE(Inputs!$G$10,Inputs!$D$191,Inputs!$D$396,0,0,Inputs!$D$191/-Inputs!$D$396)) -> 0.7457741257 | H16: =IF(Inputs!$D$397=0,"n/a",RATE(Inputs!$G$10,Inputs!$D$191,Inputs!$D$397,0,0,Inputs!$D$191/-Inputs!$D$397)) -> 0.8532325568 | I16: =IF(Inputs!$D$398=0,"n/a",RATE(Inputs!$G$10,Inputs!$D$191,Inputs!$D$398,0,0,Inputs!$D$191/-Inputs!$D$398)) -> 0.9590544976 | J16: =IF(Inputs!$D$399=0,"n/a",RATE(Inputs!$G$10,Inputs!$D$191,Inputs!$D$399,0,0,Inputs!$D$191/-Inputs!$D$399)) -> 1.063631515 | K16: =IF(Inputs!$D$400=0,"n/a",RATE(Inputs!$G$10,Inputs!$D$191,Inputs!$D$400,0,0,Inputs!$D$191/-Inputs!$D$400)) -> 1.167246042
B17: Guidance system and Section control ROI, % | G17: =IF(Inputs!$D$390+Inputs!$D$396=0,"n/a/",RATE(Inputs!$G$10,(Inputs!$D$148+Inputs!$D$191),(Inputs!$D$390+Inputs!$D$396),0,0,(Inputs!$D$148+Inputs!$D$191)/-(Inputs!$D$390+Inputs!$D$396))) -> 0.5589173267 | H17: =IF(Inputs!$D$391+Inputs!$D$397=0,"n/a/",RATE(Inputs!$G$10,(Inputs!$D$148+Inputs!$D$191),(Inputs!$D$391+Inputs!$D$397),0,0,(Inputs!$D$148+Inputs!$D$191)/-(Inputs!$D$391+Inputs!$D$397))) -> 0.6472332786 | I17: =IF(Inputs!$D$392+Inputs!$D$398=0,"n/a/",RATE(Inputs!$G$10,(Inputs!$D$148+Inputs!$D$191),(Inputs!$D$392+Inputs!$D$398),0,0,(Inputs!$D$148+Inputs!$D$191)/-(Inputs!$D$392+Inputs!$D$398))) -> 0.7337407518 | J17: =IF(Inputs!$D$393+Inputs!$D$399=0,"n/a/",RATE(Inputs!$G$10,(Inputs!$D$148+Inputs!$D$191),(Inputs!$D$393+Inputs!$D$399),0,0,(Inputs!$D$148+Inputs!$D$191)/-(Inputs!$D$393+Inputs!$D$399))) -> 0.818840659 | K17: =IF(Inputs!$D$394+Inputs!$D$400=0,"n/a/",RATE(Inputs!$G$10,(Inputs!$D$148+Inputs!$D$191),(Inputs!$D$394+Inputs!$D$400),0,0,(Inputs!$D$148+Inputs!$D$191)/-(Inputs!$D$394+Inputs!$D$400))) -> 0.9028274888
B124: ="Analysis of Precision Ag Technologies for "& Inputs!E21&" vs. Applied Acres" -> Analysis of Precision Ag Technologies for Planter vs. Applied Acres
B126: ="Acres applied annually (average field size = "&Inputs!$G$5&" acres)" -> Acres applied annually (average field size = 80 acres) | G126: =I126*Inputs!C$390 -> 4000 | H126: =I126*Inputs!C$391 -> 4500 | I126: =Inputs!$E$36 -> 5000 | J126: =I126*Inputs!C$393 -> 5500 | K126: =I126*Inputs!C$394 -> 6000
B128: ="Guidance system (going from "&FIXED(Inputs!$E$33*100,2)&"% to "&FIXED(Inputs!$E$34*100,2)&"% overlap)" -> Guidance system (going from 2.00% to 0.00% overlap)
B129: =Inputs!$D$143 -> Sum of net annual benefits, $/applied acre | G129: =I129 -> 1.438314019 | H129: =I129 -> 1.438314019 | I129: =Inputs!E148 -> 1.438314019 | J129: =I129 -> 1.438314019 | K129: =I129 -> 1.438314019
B130: Payback for given investment, years | G130: =Inputs!E403 -> 1.397743417 | H130: =Inputs!E404 -> 1.236696942 | I130: =Inputs!E405 -> 1.108939097 | J130: =Inputs!E406 -> 1.005112762 | K130: =Inputs!E407 -> 0.9190680747
B131: Sum of annual net benefits including cost of investment, $/applied acre | G131: =Inputs!E416 -> 0.9931957683 | H131: =Inputs!E417 -> 1.042653352 | I131: =Inputs!E418 -> 1.082219418 | J131: =Inputs!E419 -> 1.114591655 | K131: =Inputs!E420 -> 1.141568519
B132: ROI given benefits, years, and investment, % | G132: =IF(Inputs!$E$390=0,"n/a",RATE(Inputs!$G$10,Inputs!$E$148,Inputs!$E$390,0,0,Inputs!$E$148/-Inputs!$E$390)) -> 0.7154661005 | H132: =IF(Inputs!$E$391=0,"n/a",RATE(Inputs!$G$10,Inputs!$E$148,Inputs!$E$391,0,0,Inputs!$E$148/-Inputs!$E$391)) -> 0.8197413453 | I132: =IF(Inputs!$E$392=0,"n/a",RATE(Inputs!$G$10,Inputs!$E$148,Inputs!$E$392,0,0,Inputs!$E$148/-Inputs!$E$392)) -> 0.9223501972 | J132: =IF(Inputs!$E$393=0,"n/a",RATE(Inputs!$G$10,Inputs!$E$148,Inputs!$E$393,0,0,Inputs!$E$148/-Inputs!$E$393)) -> 1.023686633 | K132: =IF(Inputs!$E$394=0,"n/a",RATE(Inputs!$G$10,Inputs!$E$148,Inputs!$E$394,0,0,Inputs!$E$148/-Inputs!$E$394)) -> 1.124035716
B134: ="Section control (controlling "&Inputs!$E$24&"' implement in "&Inputs!$E$27&" sections)" -> Section control (controlling 40' implement in 8 sections)
B135: =Inputs!$D$143 -> Sum of net annual benefits, $/applied acre | G135: =I135 -> 3.770737017 | H135: =I135 -> 3.770737017 | I135: =Inputs!E191 -> 3.770737017 | J135: =I135 -> 3.770737017 | K135: =I135 -> 3.770737017
B136: Payback for given investment, years | G136: =Inputs!E409 -> 1.422774375 | H136: =Inputs!E410 -> 1.258736948 | I136: =Inputs!E411 -> 1.128626636 | J136: =Inputs!E412 -> 1.022901589 | K136: =Inputs!E413 -> 0.9352922083
B137: Sum of annual net benefits including cost of investment, $/applied acre | G137: =Inputs!E422 -> 2.583755015 | H137: =Inputs!E423 -> 2.715641904 | I137: =Inputs!E424 -> 2.821151415 | J137: =Inputs!E425 -> 2.907477379 | K137: =Inputs!E426 -> 2.979415682
B138: ROI given benefits, years, and investment, % | G138: =IF(Inputs!$E$396=0,"n/a",RATE(Inputs!$G$10,Inputs!$E$191,Inputs!$E$396,0,0,Inputs!$E$191/-Inputs!$E$396)) -> 0.7012238599 | H138: =IF(Inputs!$E$397=0,"n/a",RATE(Inputs!$G$10,Inputs!$E$191,Inputs!$E$397,0,0,Inputs!$E$191/-Inputs!$E$397)) -> 0.8040130222 | I138: =IF(Inputs!$E$398=0,"n/a",RATE(Inputs!$G$10,Inputs!$E$191,Inputs!$E$398,0,0,Inputs!$E$191/-Inputs!$E$398)) -> 0.9051219382 | J138: =IF(Inputs!$E$399=0,"n/a",RATE(Inputs!$G$10,Inputs!$E$191,Inputs!$E$399,0,0,Inputs!$E$191/-Inputs!$E$399)) -> 1.004945606 | K138: =IF(Inputs!$E$400=0,"n/a",RATE(Inputs!$G$10,Inputs!$E$191,Inputs!$E$400,0,0,Inputs!$E$191/-Inputs!$E$400)) -> 1.103770245
B139: Guidance system and Section control ROI, % | G139: =IF(Inputs!$E$390+Inputs!$E$396=0,"n/a/",RATE(Inputs!$G$10,(Inputs!$E$148+Inputs!$E$191),(Inputs!$E$390+Inputs!$E$396),0,0,(Inputs!$E$148+Inputs!$E$191)/-(Inputs!$E$390+Inputs!$E$396))) -> 0.7051121923 | H139: =IF(Inputs!$E$391+Inputs!$E$397=0,"n/a/",RATE(Inputs!$G$10,(Inputs!$E$148+Inputs!$E$191),(Inputs!$E$391+Inputs!$E$397),0,0,(Inputs!$E$148+Inputs!$E$191)/-(Inputs!$E$391+Inputs!$E$397))) -> 0.8083064448 | I139: =IF(Inputs!$E$392+Inputs!$E$398=0,"n/a/",RATE(Inputs!$G$10,(Inputs!$E$148+Inputs!$E$191),(Inputs!$E$392+Inputs!$E$398),0,0,(Inputs!$E$148+Inputs!$E$191)/-(Inputs!$E$392+Inputs!$E$398))) -> 0.9098242195 | J139: =IF(Inputs!$E$393+Inputs!$E$399=0,"n/a/",RATE(Inputs!$G$10,(Inputs!$E$148+Inputs!$E$191),(Inputs!$E$393+Inputs!$E$399),0,0,(Inputs!$E$148+Inputs!$E$191)/-(Inputs!$E$393+Inputs!$E$399))) -> 1.010060243 | K139: =IF(Inputs!$E$394+Inputs!$E$400=0,"n/a/",RATE(Inputs!$G$10,(Inputs!$E$148+Inputs!$E$191),(Inputs!$E$394+Inputs!$E$400),0,0,(Inputs!$E$148+Inputs!$E$191)/-(Inputs!$E$394+Inputs!$E$400))) -> 1.109300424
B245: ="Analysis of Precision Ag Technologies for "& Inputs!F21&" vs. Applied Acres" -> Analysis of Precision Ag Technologies for Fertilizer vs. Applied Acres
B247: ="Acres applied annually (average field size = "&Inputs!$G$5&" acres)" -> Acres applied annually (average field size = 80 acres) | G247: =I247*Inputs!C$390 -> 8000 | H247: =I247*Inputs!C$391 -> 9000 | I247: =Inputs!$F$36 -> 10000 | J247: =I247*Inputs!C$393 -> 11000 | K247: =I247*Inputs!C$394 -> 12000
B249: ="Guidance system (going from "&FIXED(Inputs!$F$33*100,2)&"% to "&FIXED(Inputs!$F$34*100,2)&"% overlap)" -> Guidance system (going from 4.00% to 1.50% overlap)
B250: =Inputs!$D$143 -> Sum of net annual benefits, $/applied acre | G250: =I250 -> 0.9961342513 | H250: =I250 -> 0.9961342513 | I250: =Inputs!F148 -> 0.9961342513 | J250: =I250 -> 0.9961342513 | K250: =I250 -> 0.9961342513
B251: Payback for given investment, years | G251: =Inputs!F403 -> 0.9975355652 | H251: =Inputs!F404 -> 0.8837914927 | I251: =Inputs!F405 -> 0.7933359198 | J251: =Inputs!F406 -> 0.7196798015 | K251: =Inputs!F407 -> 0.6585402673
B252: Sum of annual net benefits including cost of investment, $/applied acre | G252: =Inputs!F416 -> 0.7735751258 | H252: =Inputs!F417 -> 0.7983039176 | I252: =Inputs!F418 -> 0.8180869509 | J252: =Inputs!F419 -> 0.8342730691 | K252: =Inputs!F420 -> 0.847761501
B253: ROI given benefits, years, and investment, % | G253: =IF(Inputs!$F$390=0,"n/a",RATE(Inputs!$G$10,Inputs!$F$148,Inputs!$F$390,0,0,Inputs!$F$148/-Inputs!$F$390)) -> 1.031861756 | H253: =IF(Inputs!$F$391=0,"n/a",RATE(Inputs!$G$10,Inputs!$F$148,Inputs!$F$391,0,0,Inputs!$F$148/-Inputs!$F$391)) -> 1.170549752 | I253: =IF(Inputs!$F$392=0,"n/a",RATE(Inputs!$G$10,Inputs!$F$148,Inputs!$F$392,0,0,Inputs!$F$148/-Inputs!$F$392)) -> 1.307893889 | J253: =IF(Inputs!$F$393=0,"n/a",RATE(Inputs!$G$10,Inputs!$F$148,Inputs!$F$393,0,0,Inputs!$F$148/-Inputs!$F$393)) -> 1.444250531 | K253: =IF(Inputs!$F$394=0,"n/a",RATE(Inputs!$G$10,Inputs!$F$148,Inputs!$F$394,0,0,Inputs!$F$148/-Inputs!$F$394)) -> 1.579868799
B255: ="Section control (controlling "&Inputs!$F$24&"' implement in "&Inputs!$F$27&" sections)" -> Section control (controlling 48' implement in 4 sections)
B256: =Inputs!$D$143 -> Sum of net annual benefits, $/applied acre | G256: =I256 -> 1.451015664 | H256: =I256 -> 1.451015664 | I256: =Inputs!F191 -> 1.451015664 | J256: =I256 -> 1.451015664 | K256: =I256 -> 1.451015664
B257: Payback for given investment, years | G257: =Inputs!F409 -> 0.9108055687 | H257: =Inputs!F410 -> 0.807184819 | I257: =Inputs!F411 -> 0.724736342 | J257: =Inputs!F412 -> 0.6575718769 | K257: =Inputs!F413 -> 0.6018015854
B258: Sum of annual net benefits including cost of investment, $/applied acre | G258: =Inputs!F422 -> 1.154270163 | H258: =Inputs!F423 -> 1.187241885 | I258: =Inputs!F424 -> 1.213619263 | J258: =Inputs!F425 -> 1.235200754 | K258: =Inputs!F426 -> 1.25318533
B259: ROI given benefits, years, and investment, % | G259: =IF(Inputs!$F$396=0,"n/a",RATE(Inputs!$G$10,Inputs!$F$191,Inputs!$F$396,0,0,Inputs!$F$191/-Inputs!$F$396)) -> 1.134621172 | H259: =IF(Inputs!$F$397=0,"n/a",RATE(Inputs!$G$10,Inputs!$F$191,Inputs!$F$397,0,0,Inputs!$F$191/-Inputs!$F$397)) -> 1.28494722 | I259: =IF(Inputs!$F$398=0,"n/a",RATE(Inputs!$G$10,Inputs!$F$191,Inputs!$F$398,0,0,Inputs!$F$191/-Inputs!$F$398)) -> 1.434031623 | J259: =IF(Inputs!$F$399=0,"n/a",RATE(Inputs!$G$10,Inputs!$F$191,Inputs!$F$399,0,0,Inputs!$F$191/-Inputs!$F$399)) -> 1.582214397 | K259: =IF(Inputs!$F$400=0,"n/a",RATE(Inputs!$G$10,Inputs!$F$191,Inputs!$F$400,0,0,Inputs!$F$191/-Inputs!$F$400)) -> 1.729730531
B260: Guidance system and Section control ROI, % | G260: =IF(Inputs!$F$390+Inputs!$F$396=0,"n/a/",RATE(Inputs!$G$10,(Inputs!$F$148+Inputs!$F$191),(Inputs!$F$390+Inputs!$F$396),0,0,(Inputs!$F$148+Inputs!$F$191)/-(Inputs!$F$390+Inputs!$F$396))) -> 1.09069027 | H260: =IF(Inputs!$F$391+Inputs!$F$397=0,"n/a/",RATE(Inputs!$G$10,(Inputs!$F$148+Inputs!$F$191),(Inputs!$F$391+Inputs!$F$397),0,0,(Inputs!$F$148+Inputs!$F$191)/-(Inputs!$F$391+Inputs!$F$397))) -> 1.236018401 | I260: =IF(Inputs!$F$392+Inputs!$F$398=0,"n/a/",RATE(Inputs!$G$10,(Inputs!$F$148+Inputs!$F$191),(Inputs!$F$392+Inputs!$F$398),0,0,(Inputs!$F$148+Inputs!$F$191)/-(Inputs!$F$392+Inputs!$F$398))) -> 1.38006167 | J260: =IF(Inputs!$F$393+Inputs!$F$399=0,"n/a/",RATE(Inputs!$G$10,(Inputs!$F$148+Inputs!$F$191),(Inputs!$F$393+Inputs!$F$399),0,0,(Inputs!$F$148+Inputs!$F$191)/-(Inputs!$F$393+Inputs!$F$399))) -> 1.52316723 | K260: =IF(Inputs!$F$394+Inputs!$F$400=0,"n/a/",RATE(Inputs!$G$10,(Inputs!$F$148+Inputs!$F$191),(Inputs!$F$394+Inputs!$F$400),0,0,(Inputs!$F$148+Inputs!$F$191)/-(Inputs!$F$394+Inputs!$F$400))) -> 1.665576178
B366: ="Analysis of Precision Ag Technologies for "& Inputs!G21&" vs. Applied Acres" -> Analysis of Precision Ag Technologies for Other 1 vs. Applied Acres
B368: ="Acrs applied annually (average field size = "&Inputs!$G$5&" acres)" -> Acrs applied annually (average field size = 80 acres) | G368: =I368*Inputs!C$390 -> 6000 | H368: =I368*Inputs!C$391 -> 6750 | I368: =Inputs!$G$36 -> 7500 | J368: =I368*Inputs!C$393 -> 8250 | K368: =I368*Inputs!C$394 -> 9000
B370: ="Guidance system (going from "&FIXED(Inputs!$F$33*100,2)&"% to "&FIXED(Inputs!$F$34*100,2)&"% overlap)" -> Guidance system (going from 4.00% to 1.50% overlap)
B371: =Inputs!$D$143 -> Sum of net annual benefits, $/applied acre | G371: =I371 -> 0.9690078012 | H371: =I371 -> 0.9690078012 | I371: =Inputs!G148 -> 0.9690078012 | J371: =I371 -> 0.9690078012 | K371: =I371 -> 0.9690078012
B372: Payback for given investment, years | G372: =Inputs!G403 -> 0.9091993179 | H372: =Inputs!G404 -> 0.8057656275 | I372: =Inputs!G405 -> 0.7234651857 | J372: =Inputs!G406 -> 0.65642079 | K372: =Inputs!G407 -> 0.6007498427
B373: Sum of annual net benefits including cost of investment, $/applied acre | G373: =Inputs!G416 -> 0.7711774675 | H373: =Inputs!G417 -> 0.7931586157 | I373: =Inputs!G418 -> 0.8107435342 | J373: =Inputs!G419 -> 0.8251311949 | K373: =Inputs!G420 -> 0.8371209121
B374: ROI given benefits, years, and investment, % | G374: =IF(Inputs!$G$390=0,"n/a",RATE(Inputs!$G$10,Inputs!$G$148,Inputs!$G$390,0,0,Inputs!$G$148/-Inputs!$G$390)) -> 1.136700351 | H374: =IF(Inputs!$G$391=0,"n/a",RATE(Inputs!$G$10,Inputs!$G$148,Inputs!$G$391,0,0,Inputs!$G$148/-Inputs!$G$391)) -> 1.28726373 | I374: =IF(Inputs!$G$392=0,"n/a",RATE(Inputs!$G$10,Inputs!$G$148,Inputs!$G$392,0,0,Inputs!$G$148/-Inputs!$G$392)) -> 1.436587489 | J374: =IF(Inputs!$G$393=0,"n/a",RATE(Inputs!$G$10,Inputs!$G$148,Inputs!$G$393,0,0,Inputs!$G$148/-Inputs!$G$393)) -> 1.585011302 | K374: =IF(Inputs!$G$394=0,"n/a",RATE(Inputs!$G$10,Inputs!$G$148,Inputs!$G$394,0,0,Inputs!$G$148/-Inputs!$G$394)) -> 1.732769868
B376: ="Section control (controlling "&Inputs!$G$24&"' implement in "&Inputs!$G$27&" sections)" -> Section control (controlling 60' implement in 5 sections)
B377: =Inputs!$D$143 -> Sum of net annual benefits, $/applied acre | G377: =I377 -> 0.7542010249 | H377: =I377 -> 0.7542010249 | I377: =Inputs!G191 -> 0.7542010249 | J377: =I377 -> 0.7542010249 | K377: =I377 -> 0.7542010249
B378: Payback for given investment, years | G378: =Inputs!G409 -> 2.441169168 | H378: =Inputs!G410 -> 2.152136359 | I378: =Inputs!G411 -> 1.924364543 | J378: =Inputs!G412 -> 1.740228389 | K378: =Inputs!G413 -> 1.588276541
B379: Sum of annual net benefits including cost of investment, $/applied acre | G379: =Inputs!G422 -> 0.3585403576 | H379: =Inputs!G423 -> 0.4025026539 | I379: =Inputs!G424 -> 0.437672491 | J379: =Inputs!G425 -> 0.4664478123 | K379: =Inputs!G426 -> 0.4904272467
B380: ROI given benefits, years, and investment, % | G380: =IF(Inputs!$G$396=0,"n/a",RATE(Inputs!$G$10,Inputs!$G$191,Inputs!$G$396,0,0,Inputs!$G$191/-Inputs!$G$396)) -> 0.3525502332 | H380: =IF(Inputs!$G$397=0,"n/a",RATE(Inputs!$G$10,Inputs!$G$191,Inputs!$G$397,0,0,Inputs!$G$191/-Inputs!$G$397)) -> 0.4213180195 | I380: =IF(Inputs!$G$398=0,"n/a",RATE(Inputs!$G$10,Inputs!$G$191,Inputs!$G$398,0,0,Inputs!$G$191/-Inputs!$G$398)) -> 0.4881478699 | J380: =IF(Inputs!$G$399=0,"n/a",RATE(Inputs!$G$10,Inputs!$G$191,Inputs!$G$399,0,0,Inputs!$G$191/-Inputs!$G$399)) -> 0.553433347 | K380: =IF(Inputs!$G$400=0,"n/a",RATE(Inputs!$G$10,Inputs!$G$191,Inputs!$G$400,0,0,Inputs!$G$191/-Inputs!$G$400)) -> 0.6174681526
B381: Guidance system and Section control ROI, % | G381: =IF(Inputs!$G$390+Inputs!$G$396=0,"n/a/",RATE(Inputs!$G$10,(Inputs!$G$148+Inputs!$G$191),(Inputs!$G$390+Inputs!$G$396),0,0,(Inputs!$G$148+Inputs!$G$191)/-(Inputs!$G$390+Inputs!$G$396))) -> 0.6292389218 | H381: =IF(Inputs!$G$391+Inputs!$G$397=0,"n/a/",RATE(Inputs!$G$10,(Inputs!$G$148+Inputs!$G$191),(Inputs!$G$391+Inputs!$G$397),0,0,(Inputs!$G$148+Inputs!$G$191)/-(Inputs!$G$391+Inputs!$G$397))) -> 0.724617978 | I381: =IF(Inputs!$G$392+Inputs!$G$398=0,"n/a/",RATE(Inputs!$G$10,(Inputs!$G$148+Inputs!$G$191),(Inputs!$G$392+Inputs!$G$398),0,0,(Inputs!$G$148+Inputs!$G$191)/-(Inputs!$G$392+Inputs!$G$398))) -> 0.8182492494 | J381: =IF(Inputs!$G$393+Inputs!$G$399=0,"n/a/",RATE(Inputs!$G$10,(Inputs!$G$148+Inputs!$G$191),(Inputs!$G$393+Inputs!$G$399),0,0,(Inputs!$G$148+Inputs!$G$191)/-(Inputs!$G$393+Inputs!$G$399))) -> 0.9105317448 | K381: =IF(Inputs!$G$394+Inputs!$G$400=0,"n/a/",RATE(Inputs!$G$10,(Inputs!$G$148+Inputs!$G$191),(Inputs!$G$394+Inputs!$G$400),0,0,(Inputs!$G$148+Inputs!$G$191)/-(Inputs!$G$394+Inputs!$G$400))) -> 1.001756651
B487: ="Analysis of Precision Ag Technologies for "& Inputs!H21&" vs. Applied Acres" -> Analysis of Precision Ag Technologies for Other 2 vs. Applied Acres
B489: ="Acres applied annually (average field size = "&Inputs!$G$5&" acres)" -> Acres applied annually (average field size = 80 acres) | G489: =I489*Inputs!C$390 -> 8000 | H489: =I489*Inputs!C$391 -> 9000 | I489: =Inputs!$H$36 -> 10000 | J489: =I489*Inputs!C$393 -> 11000 | K489: =I489*Inputs!C$394 -> 12000
B491: ="Guidance system (going from "&FIXED(Inputs!$F$33*100,2)&"% to "&FIXED(Inputs!$F$34*100,2)&"% overlap)" -> Guidance system (going from 4.00% to 1.50% overlap)
B492: =Inputs!$D$143 -> Sum of net annual benefits, $/applied acre | G492: =I492 -> 1.00416783 | H492: =I492 -> 1.00416783 | I492: =Inputs!H148 -> 1.00416783 | J492: =I492 -> 1.00416783 | K492: =I492 -> 1.00416783
B493: Payback for given investment, years | G493: =Inputs!H403 -> 2.03917966 | H493: =Inputs!H404 -> 1.800264586 | I493: =Inputs!H405 -> 1.611498732 | J493: =Inputs!H406 -> 1.4585835 | K493: =Inputs!H407 -> 1.33218677
B494: Sum of annual net benefits including cost of investment, $/applied acre | G494: =Inputs!H416 -> 0.5590495795 | H494: =Inputs!H417 -> 0.6085071629 | I494: =Inputs!H418 -> 0.6480732296 | J494: =Inputs!H419 -> 0.6804454661 | K494: =Inputs!H420 -> 0.7074223297
B495: ROI given benefits, years, and investment, % | G495: =IF(Inputs!$H$390=0,"n/a",RATE(Inputs!$G$10,Inputs!$H$148,Inputs!$H$390,0,0,Inputs!$H$148/-Inputs!$H$390)) -> 0.4528065378 | H495: =IF(Inputs!$H$391=0,"n/a",RATE(Inputs!$G$10,Inputs!$H$148,Inputs!$H$391,0,0,Inputs!$H$148/-Inputs!$H$391)) -> 0.5308340729 | I495: =IF(Inputs!$H$392=0,"n/a",RATE(Inputs!$G$10,Inputs!$H$148,Inputs!$H$392,0,0,Inputs!$H$148/-Inputs!$H$392)) -> 0.6069756416 | J495: =IF(Inputs!$H$393=0,"n/a",RATE(Inputs!$G$10,Inputs!$H$148,Inputs!$H$393,0,0,Inputs!$H$148/-Inputs!$H$393)) -> 0.6816308882 | K495: =IF(Inputs!$H$394=0,"n/a",RATE(Inputs!$G$10,Inputs!$H$148,Inputs!$H$394,0,0,Inputs!$H$148/-Inputs!$H$394)) -> 0.7550959695
B497: ="Section control (controlling "&Inputs!$H$24&"' implement in "&Inputs!$H$27&" sections)" -> Section control (controlling 90' implement in 5 sections)
B498: =Inputs!$D$143 -> Sum of net annual benefits, $/applied acre | G498: =I498 -> 0.9934837983 | H498: =I498 -> 0.9934837983 | I498: =Inputs!H191 -> 0.9934837983 | J498: =I498 -> 0.9934837983 | K498: =I498 -> 0.9934837983
B499: Payback for given investment, years | G499: =Inputs!H409 -> 1.347090438 | H499: =Inputs!H410 -> 1.192084755 | I499: =Inputs!H411 -> 1.069080393 | J499: =Inputs!H412 -> 0.969092103 | K499: =Inputs!H413 -> 0.8862112416
B500: Sum of annual net benefits including cost of investment, $/applied acre | G500: =Inputs!H422 -> 0.6967382977 | H500: =Inputs!H423 -> 0.72971002 | I500: =Inputs!H424 -> 0.7560873978 | J500: =Inputs!H425 -> 0.7776688888 | K500: =Inputs!H426 -> 0.7956534646
B501: ROI given benefits, years, and investment, % | G501: =IF(Inputs!$H$396=0,"n/a",RATE(Inputs!$G$10,Inputs!$H$191,Inputs!$H$396,0,0,Inputs!$H$191/-Inputs!$H$396)) -> 0.7457741257 | H501: =IF(Inputs!$H$397=0,"n/a",RATE(Inputs!$G$10,Inputs!$H$191,Inputs!$H$397,0,0,Inputs!$H$191/-Inputs!$H$397)) -> 0.8532325568 | I501: =IF(Inputs!$H$398=0,"n/a",RATE(Inputs!$G$10,Inputs!$H$191,Inputs!$H$398,0,0,Inputs!$H$191/-Inputs!$H$398)) -> 0.9590544976 | J501: =IF(Inputs!$H$399=0,"n/a",RATE(Inputs!$G$10,Inputs!$H$191,Inputs!$H$399,0,0,Inputs!$H$191/-Inputs!$H$399)) -> 1.063631515 | K501: =IF(Inputs!$H$400=0,"n/a",RATE(Inputs!$G$10,Inputs!$H$191,Inputs!$H$400,0,0,Inputs!$H$191/-Inputs!$H$400)) -> 1.167246042
B502: Guidance system and Section control ROI, % | G502: =IF(Inputs!$H$390+Inputs!$H$396=0,"n/a/",RATE(Inputs!$G$10,(Inputs!$H$148+Inputs!$H$191),(Inputs!$H$390+Inputs!$H$396),0,0,(Inputs!$H$148+Inputs!$H$191)/-(Inputs!$H$390+Inputs!$H$396))) -> 0.5728355038 | H502: =IF(Inputs!$H$391+Inputs!$H$397=0,"n/a/",RATE(Inputs!$G$10,(Inputs!$H$148+Inputs!$H$191),(Inputs!$H$391+Inputs!$H$397),0,0,(Inputs!$H$148+Inputs!$H$191)/-(Inputs!$H$391+Inputs!$H$397))) -> 0.662534752 | I502: =IF(Inputs!$H$392+Inputs!$H$398=0,"n/a/",RATE(Inputs!$G$10,(Inputs!$H$148+Inputs!$H$191),(Inputs!$H$392+Inputs!$H$398),0,0,(Inputs!$H$148+Inputs!$H$191)/-(Inputs!$H$392+Inputs!$H$398))) -> 0.7504370322 | J502: =IF(Inputs!$H$393+Inputs!$H$399=0,"n/a/",RATE(Inputs!$G$10,(Inputs!$H$148+Inputs!$H$191),(Inputs!$H$393+Inputs!$H$399),0,0,(Inputs!$H$148+Inputs!$H$191)/-(Inputs!$H$393+Inputs!$H$399))) -> 0.836943047 | K502: =IF(Inputs!$H$394+Inputs!$H$400=0,"n/a/",RATE(Inputs!$G$10,(Inputs!$H$148+Inputs!$H$191),(Inputs!$H$394+Inputs!$H$400),0,0,(Inputs!$H$148+Inputs!$H$191)/-(Inputs!$H$394+Inputs!$H$400))) -> 0.922346763
B608: Analysis of Precision Agricultural Technologies for Whole Farm
B610: ="Percent of acres applied annually (base = "&FIXED(Inputs!$I$36,0)&" acres)" -> Percent of acres applied annually (base = 25,000 acres) | G610: =Inputs!C390 -> 0.8 | H610: =Inputs!C391 -> 0.9 | I610: =Inputs!C392 -> 1 | J610: =Inputs!C393 -> 1.1 | K610: =Inputs!C394 -> 1.2
B612: Guidance system
B613: =Inputs!$D$143 -> Sum of net annual benefits, $/applied acre | G613: =I613 -> 1.072498384 | H613: =I613 -> 1.072498384 | I613: =Inputs!I148 -> 1.072498384 | J613: =I613 -> 1.072498384 | K613: =I613 -> 1.072498384
B614: Payback for given investment, years | G614: =Inputs!I403 -> 1.504188905 | H614: =Inputs!I404 -> 1.330396642 | I614: =Inputs!I405 -> 1.192618971 | J614: =Inputs!I406 -> 1.080708743 | K614: =Inputs!I407 -> 0.9880044603
B615: Sum of annual net benefits including cost of investment, $/applied acre | G615: =Inputs!I416 -> 0.7164037832 | H615: =Inputs!I417 -> 0.7559698499 | I615: =Inputs!I418 -> 0.7876227033 | J615: =Inputs!I419 -> 0.8135204924 | K615: =Inputs!I420 -> 0.8351019834
B616: ROI given benefits, years, and investment, % | G616: =IF(Inputs!$I$390=0,"n/a",RATE(Inputs!$G$10,Inputs!$I$148,Inputs!$I$390,0,0,Inputs!$I$148/-Inputs!$I$390)) -> 0.6579181317 | H616: =IF(Inputs!$I$391=0,"n/a",RATE(Inputs!$G$10,Inputs!$I$148,Inputs!$I$391,0,0,Inputs!$I$148/-Inputs!$I$391)) -> 0.756228626 | I616: =IF(Inputs!$I$392=0,"n/a",RATE(Inputs!$G$10,Inputs!$I$148,Inputs!$I$392,0,0,Inputs!$I$148/-Inputs!$I$392)) -> 0.8528176907 | J616: =IF(Inputs!$I$393=0,"n/a",RATE(Inputs!$G$10,Inputs!$I$148,Inputs!$I$393,0,0,Inputs!$I$148/-Inputs!$I$393)) -> 0.9480829752 | K616: =IF(Inputs!$I$394=0,"n/a",RATE(Inputs!$G$10,Inputs!$I$148,Inputs!$I$394,0,0,Inputs!$I$148/-Inputs!$I$394)) -> 1.042313868
B618: Section control
B619: =Inputs!$D$143 -> Sum of net annual benefits, $/applied acre | G619: =I619 -> 1.731947188 | H619: =I619 -> 1.731947188 | I619: =Inputs!I191 -> 1.731947188 | J619: =I619 -> 1.731947188 | K619: =I619 -> 1.731947188
B620: Payback for given investment, years | G620: =Inputs!I409 -> 1.232277012 | H620: =Inputs!I410 -> 1.090905775 | I620: =Inputs!I411 -> 0.9786413218 | J620: =Inputs!I412 -> 0.8873317005 | K620: =Inputs!I413 -> 0.8116097111
B621: Sum of annual net benefits including cost of investment, $/applied acre | G621: =Inputs!I422 -> 1.257154387 | H621: =Inputs!I423 -> 1.309909143 | I621: =Inputs!I424 -> 1.352112947 | J621: =Inputs!I425 -> 1.386643333 | K621: =Inputs!I426 -> 1.415418654
B622: ROI given benefits, years, and investment, % | G622: =IF(Inputs!$I$396=0,"n/a",RATE(Inputs!$G$10,Inputs!$I$191,Inputs!$I$396,0,0,Inputs!$I$191/-Inputs!$I$396)) -> 0.8229585155 | H622: =IF(Inputs!$I$397=0,"n/a",RATE(Inputs!$G$10,Inputs!$I$191,Inputs!$I$397,0,0,Inputs!$I$191/-Inputs!$I$397)) -> 0.9386434455 | I622: =IF(Inputs!$I$398=0,"n/a",RATE(Inputs!$G$10,Inputs!$I$191,Inputs!$I$398,0,0,Inputs!$I$191/-Inputs!$I$398)) -> 1.052769946 | J622: =IF(Inputs!$I$399=0,"n/a",RATE(Inputs!$G$10,Inputs!$I$191,Inputs!$I$399,0,0,Inputs!$I$191/-Inputs!$I$399)) -> 1.165722113 | K622: =IF(Inputs!$I$400=0,"n/a",RATE(Inputs!$G$10,Inputs!$I$191,Inputs!$I$400,0,0,Inputs!$I$191/-Inputs!$I$400)) -> 1.277774728
B623: Guidance system and Section control ROI, % | G623: =IF(Inputs!$I$390+Inputs!$I$396=0,"n/a/",RATE(Inputs!$G$10,(Inputs!$I$148+Inputs!$I$191),(Inputs!$I$390+Inputs!$I$396),0,0,(Inputs!$I$148+Inputs!$I$191)/-(Inputs!$I$390+Inputs!$I$396))) -> 0.7528462542 | H623: =IF(Inputs!$I$391+Inputs!$I$397=0,"n/a/",RATE(Inputs!$G$10,(Inputs!$I$148+Inputs!$I$191),(Inputs!$I$391+Inputs!$I$397),0,0,(Inputs!$I$148+Inputs!$I$191)/-(Inputs!$I$391+Inputs!$I$397))) -> 0.8610514142 | I623: =IF(Inputs!$I$392+Inputs!$I$398=0,"n/a/",RATE(Inputs!$G$10,(Inputs!$I$148+Inputs!$I$191),(Inputs!$I$392+Inputs!$I$398),0,0,(Inputs!$I$148+Inputs!$I$191)/-(Inputs!$I$392+Inputs!$I$398))) -> 0.9676271344 | J623: =IF(Inputs!$I$393+Inputs!$I$399=0,"n/a/",RATE(Inputs!$G$10,(Inputs!$I$148+Inputs!$I$191),(Inputs!$I$393+Inputs!$I$399),0,0,(Inputs!$I$148+Inputs!$I$191)/-(Inputs!$I$393+Inputs!$I$399))) -> 1.072964375 | K623: =IF(Inputs!$I$394+Inputs!$I$400=0,"n/a/",RATE(Inputs!$G$10,(Inputs!$I$148+Inputs!$I$191),(Inputs!$I$394+Inputs!$I$400),0,0,(Inputs!$I$148+Inputs!$I$191)/-(Inputs!$I$394+Inputs!$I$400))) -> 1.177344923

Sheet Fields
B2: All Fields Data
B5: Field characteristics section | D5: Acre-wtd.
B6: Field name | C6: units | D6: average | E6: Field #1 | F6: Field #2 | G6: Field #3 | H6: Field #4 | I6: Field #5 | J6: Field #6 | K6: Field #7 | L6: Field #8 | M6: Field #9 | N6: Field #10 | O6: Field #11 | P6: Field #12 | Q6: Field #13 | R6: Field #14 | S6: Field #15 | T6: Field #16 | U6: Field #17 | V6: Field #18 | W6: Field #19 | X6: Field #20 | Y6: Field #21 | Z6: Field #22 | AA6: Field #23 | AB6: Field #24 | AC6: Field #25 | AD6: Field #26 | AE6: Field #27 | AF6: Field #28 | AG6: Field #29 | AH6: Field #30 | AI6: Field #31 | AJ6: Field #32 | AK6: Field #33 | AL6: Field #34 | AM6: Field #35 | AN6: Field #36 | AO6: Field #37 | AP6: Field #38 | AQ6: Field #39 | AR6: Field #40 | AS6: Field #41 | AT6: Field #42 | AU6: Field #43 | AV6: Field #44 | AW6: Field #45 | AX6: Field #46 | AY6: Field #47 | AZ6: Field #48 | BA6: Field #49 | BB6: Field #50 | BC6: Field #51 | BD6: Field #52 | BE6: Field #53 | BF6: Field #54 | BG6: Field #55 | BH6: Field #56 | BI6: Field #57 | BJ6: Field #58 | BK6: Field #59 | BL6: Field #60 | BM6: Field #61 | BN6: Field #62 | BO6: Field #63 | BP6: Field #64 | BQ6: Field #65 | BR6: Field #66 | BS6: Field #67 | BT6: Field #68 | BU6: Field #69 | BV6: Field #70 | BW6: Field #71 | BX6: Field #72 | BY6: Field #73 | BZ6: Field #74 | CA6: Field #75 | CB6: Field #76 | CC6: Field #77 | CD6: Field #78 | CE6: Field #79 | CF6: Field #80 | CG6: Field #81 | CH6: Field #82 | CI6: Field #83 | CJ6: Field #84 | CK6: Field #85 | CL6: Field #86 | CM6: Field #87 | CN6: Field #88 | CO6: Field #89 | CP6: Field #90 | CQ6: Field #91 | CR6: Field #92 | CS6: Field #93 | CT6: Field #94 | CU6: Field #95 | CV6: Field #96 | CW6: Field #97 | CX6: Field #98 | CY6: Field #99 | CZ6: Field #100
B7: Size of field | C7: acres | D7: =(SUMPRODUCT(E7:CZ7,$E$7:$CZ$7))/$D$8 -> 75.40223464 | E7: 50 | F7: 88 | G7: 75 | H7: 55 | I7: 90
B8: Total acres | C8: acres | D8: =SUM(E7:CZ7) -> 358
B9: Maximum width of field, perpendicular to direction of swaths (passes) | C9: feet | D9: =(SUMPRODUCT(E9:CZ9,$E$7:$CZ$7))/$D$8 -> 1897.192737 | E9: 1690.5 | F9: 2015 | G9: 1897 | H9: 1565 | I9: 2100
B10: Running distance of headlands to cover for field | C10: feet | D10: =(SUMPRODUCT(E10:CZ10,$E$7:$CZ$7))/$D$8 -> 6000.069832 | E10: 7760 | F10: 5000 | G10: 6000 | H10: 5755 | I10: 6150
B11: Average angle of approach to headland in degrees (0-90) | C11: degrees | E11: =IF(ISERR(DEGREES(ASIN(2*E9/E10))),"",DEGREES(ASIN(2*E9/E10))) -> 25.82958183 | F11: =IF(ISERR(DEGREES(ASIN(2*F9/F10))),"",DEGREES(ASIN(2*F9/F10))) -> 53.70694151 | G11: =IF(ISERR(DEGREES(ASIN(2*G9/G10))),"",DEGREES(ASIN(2*G9/G10))) -> 39.22248221 | H11: 32.94781114 | I11: 43.07278135 | BC11: =IF(ISERR(DEGREES(ASIN(2*BC9/BC10))),"",DEGREES(ASIN(2*BC9/BC10))) ->  | CI11: =IF(ISERR(DEGREES(ASIN(2*CI9/CI10))),"",DEGREES(ASIN(2*CI9/CI10))) -> 

Sheet Notes
B2: Figure 1. Representation of how values in spreadsheet are calculated
B30: Notes regarding how angle of approach is calculated given perimeter (running feet of headland)
C31: and number of passes
C32: p = perimeter distance per pass = running feet of headland divided by number of passes
C33: c = p/2, or
C34: w = width of swath
C35: c = (w2 + b2)0.5
C36: sine(a) = w/c, where angle a is expressed in radians
C37: a = arcsine(w/c), where angle a is expressed in radians
B38: Note that in Excel the angle must be expressed in radians for formulas to work
B40: Distance machine must travel into headland before whole boom can be shut off = b
C41: tan(a) = w/b, where angle a is expressed in radians
C42: b = w/tan(a), or
C43: b = (c2 - w2)0.5
B44: Crop input overlap area per pass = (Area A plus Q) times 2 since each pass has two ends
C45: d = reaction distance of travel before manually shutoff boom
C46: Q = d*w
C47: Input overlap area per pass = (w*b/2 + Q)*2
B49: Notes about radians and degrees
B50: A radian is defined this way:
B51: If you have a circle with an angle whose vertex is at the center of that circle...
B52: And if that angle is of such a size that the amount of the circumference of the circle which that angle intercepts
C53: has an arc length equal to the length of the radius...
B54: Then that angle has a measurement of one radian.
B55: Here's another way to say it:
B56: A central angle to a circle has a size of one radian if it subtends an arc length on the circle equal in length to
C57: the radius.
B58: Excel formula for computing the number of degrees in a radian = 360/2/PI()
B59: 1 radian = 57.2957 degrees
B60: 1 degree = 0.0174532 radians
B61: What is the reasoning behind these values? It works this way:
B62: How many times can you trace an arc length equal to the size of the radius as you move around the
C63: circumference of a circle? Well, here's the formula for the circumference of a circle:
B64: C=2*pi*r
B65: C is the circumference, and r is the radius.
B66: Looks like there are two pi radii around the circumference of a circle, or about 2 times 3.14, i.e., about 6.28, radii
C67: around the circumference of a circle. Each one of these radius lengths would designate one radian, so there
C68: are about 6.28 radians in a full circle.
B70: A couple of relevant trigonometric functions:
B71: Sine is the ratio of the length of the side opposite the acute angle to the hypotenuse in a right triangle.
B72: Tangent is the ratio of the length of the side opposite the acute angle to the adjacent side in a right triangle.
B75: Odd1 field (one on left in picture below)
B76: 167.4 acres; farmed north-south; 3960 feet west to east at widest point
B77: Headland length is 16700 feet (whole perimeter)
B108: Odd2 field
B109: 269.9 acres; farmed north-south; 5502 feet west to east at widest point
B110: Headland length is 30690 feet (whole perimeter)

Sheet Ammortization
B2: Amortization factors
C4: Interest Rate
B5: Years | C5: 0.06 | D5: 0.07 | E5: 0.08 | F5: 0.09 | G5: 0.1
B6: 1 | C6: =C$5/(1-(1+C$5)^(-$B6)) -> 1.06 | D6: 1.07 | E6: 1.08 | F6: 1.09 | G6: 1.1
B7: 2 | C7: 0.5454368932 | D7: 0.5530917874 | E7: 0.5607692308 | F7: 0.5684688995 | G7: 0.5761904762
B8: 3 | C8: 0.3741098128 | D8: 0.3810516657 | E8: 0.388033514 | F8: 0.3950547573 | G8: 0.4021148036
B9: 4 | C9: 0.2885914924 | D9: 0.2952281167 | E9: 0.3019208045 | F9: 0.3086686621 | G9: 0.3154708037
B10: 5 | C10: 0.2373964004 | D10: 0.2438906944 | E10: 0.2504564546 | F10: 0.257092457 | G10: 0.2637974808
B11: 6 | C11: 0.2033626285 | D11: 0.2097957998 | E11: 0.2163153862 | F11: 0.2229197833 | G11: 0.2296073804
B12: 7 | C12: 0.1791350181 | D12: 0.1855532196 | E12: 0.1920724014 | F12: 0.1986905168 | G12: 0.2054054997
B13: 8 | C13: 0.1610359426 | D13: 0.1674677625 | E13: 0.1740147606 | F13: 0.1806743778 | G13: 0.1874440176
B14: 9 | C14: 0.147022235 | D14: 0.1534864701 | E14: 0.1600797092 | F14: 0.1667988021 | G14: 0.1736405391
B15: 10 | C15: 0.1358679582 | D15: 0.1423775027 | E15: 0.1490294887 | F15: 0.1558200899 | G15: 0.1627453949
B17: payment formula> | D17: PMT=PV*int/[1-(1+int)^(-N)]
B18: payback time formula> | D18: N=-ln[1-PV*int/PMT]/ln(1+int)
D20: amortization | E20: investment | F20: payback | G20: internal rate
D21: mathematics | E21: supported | F21: in years | G21: of return
B22: interest rate (in)> | D22: 0.08 | E22: =D22 -> 0.08 | F22: =D22 -> 0.08 | G22: =RATE(G23,G26,-G25,0,0,D22) -> 0.1441853524
B23: number of years (N) > | D23: 4 | E23: =D23 -> 4 | F23: =IF(E29<(D25*D22/D27),"won't pay",-LN(1-F25*D22/E26)/LN(1+D22)) -> 3.414829163 | G23: =D23 -> 4
B24: payment factor> | D24: =D22/(1-(1+D22)^(-D23)) -> 0.3019208045
B25: investment (PV) > | D25: 13000 | E25: =E29*E27*(1-(1+E22)^(-E23))/E22 -> 14904.57078 | F25: =D25 -> 13000 | G25: =D25 -> 13000
B26: annual payment (PMT) > | D26: =D22/(1-(1+D22)^(-D23))*D25 -> 3924.970458 | E26: =D27*E29 -> 4500 | F26: =E27*F29 -> 4500 | G26: =F27*G29 -> 4500
B27: acres used on annually> | D27: 15000 | E27: =D27 -> 15000 | F27: =E27 -> 15000 | G27: =F27 -> 15000
B28: investment per acre> | D28: =D25/D27 -> 0.8666666667
B29: annual cost/benefit per acre> | D29: =D26/D27 -> 0.2616646972 | E29: 0.3 | F29: =E29 -> 0.3 | G29: =F29 -> 0.3
B31: Note: The information contained in this tab is for illustrative purposes only. Calculated values in the Results tab are based on information entered in the Inputs tab, but using the concepts shown here.
